Cogmind - Beta 16 @@@ ROGUE MODE // 2025.10.22 @ 21:02:32 Player: Dosh Result: Destroyed by H-88 Terminator with KE Penetrator Performance ------------- Evolutions (9) 4500 Regions Visited (38) 7600 Robots Destroyed (534) 2670 Value Destroyed (36228) 36228 Prototype IDs (94) 1880 Alien Tech Used (0) 0 Bonus (38621) 38621 TOTAL SCORE: 91499 Bonus ------- High Alert Combat Kills 1834 Follower Combat Kills 14300 Destroyed Unchained 1000 Entered Garrisons 2800 Used RIF Installer 8000 Aligned with FarCom 300 Destroyed MAIN.C Guards 500 Met MAIN.C 5000 Destroyed MAIN.C Shell 5000 Friendly Fire -113 Cogmind --------- Core Integrity 0/1600 Matter 290/300 Energy 100/100 System Corruption 29% Temperature Cool (0) Movement Core (50) Location -1/Command Parts ------- > --- POWER (4) -------- (None) > --- PROPULSION (6) --- (None) > --- UTILITY (13) ----- (None) > --- WEAPON (2) ------- (None) > --- INVENTORY (5) ---- Medium Matter Pod (100) Linear Accelerator Advanced Remote Datajack Peak State ------------ > --- POWER ------------ Reinforced Antimatter Reactor Quantum Reactor Reinforced Quantum Reactor Reinforced Quantum Reactor > --- PROPULSION ------- Armored Heavy Treads Biometal Heavy Treads Advanced Heavy Siege Treads > --- UTILITY ---------- Experimental Power Amplifier 2N-1CE's Frost Array Advanced Coolant Injector Huge Storage Unit Experimental Targeting Computer Advanced Target Analyzer Advanced Target Analyzer Experimental Core Analyzer Quantum Capacitor Centrium Medium Armor Plating Advanced Force Field Relay Coupler [C] > --- WEAPON ----------- Multirail Compact Linear Accelerator > --- INVENTORY -------- Reinforced Fission Core Advanced Heavy Siege Treads Small Matter Pod Medium Matter Pod Advanced Transmission Jammer ID Mask Relay Coupler [Sentry] Relay Coupler [Proto] High-powered Tractor Beam Enhanced Nova Cannon Enhanced Nova Cannon Linear Accelerator Compact Tesla Bomb Launcher Advanced Remote Datajack [Rating: 214] Favorites ----------- Power Quantum Reactor Engine Improved Deuterium Engine Power Core Neutrino Core Reactor Quantum Reactor Propulsion Improved Heavy Treads Treads Improved Heavy Treads Utility Relay Coupler [NC] Device Quantum Capacitor Storage Huge Storage Unit Processor Advanced Targeting Computer Hackware Relay Coupler [NC] Protection Improved Medium Armor Plating Weapon Spread Laser Energy Gun Spread Laser Energy Cannon Cooled Particle Cannon Ballistic Gun Autogun Ballistic Cannon Compact Linear Accelerator Launcher Heavy Rocket Launcher Special Weapon Improved Remote Datajack Impact Weapon Heavy Flail Slashing Weapon Chainsword Build | -11 -10 -10 -10 -9 -8 -8 -8 -8 -7 -7 -7 -7 -7 -7 -6 -6 -6 -6 -6 -6 -6 -6 -5 -5 -4 -4 -4 -4 -4 -4 -3 -3 -3 -3 -2 -2 -1 -1 ------- Run | Yrd Mat Min Exi Min Mat Gar Mat Gar Fac Gar Fac Gar Fac Gar Fac Was Fac Gar Fac Gar Fac Gar Fac Gar Fac Gar Fac Gar Fac Gar Res Gar Res Tes Res Gar Acc Com Slots Evolved 18 | . . . . . 4 . . . 2 . . . . . 2 . . . . . . . 2 . 2 . . . . . 2 . . . 2 . 2 . Power 3 | . . . . . . . . . . . . . . . 1 . . . . . . . . . . . . . . . 1 . . . . . 1 . Propulsion 4 | . . . . . 1 . . . 1 . . . . . . . . . . . . . . . 1 . . . . . 1 . . . . . . . Utility 11 | . . . . . 3 . . . 1 . . . . . 1 . . . . . . . 2 . 1 . . . . . . . . . 2 . 1 . Weapon . | . . . . . . . . . . . . . . . . . . . . . . . . . . . . . . . . . . . . . . . Parts Attached 343 | 6 11 3 . 5 11 11 12 2 8 7 11 8 11 10 12 6 2 12 5 14 1 7 7 6 7 3 19 14 7 10 6 10 2 9 12 12 19 25 Power 36 | 1 1 . . . 2 . . . . 1 . . . 2 2 3 . 2 . 3 1 . 1 1 . 1 1 . 1 . 2 2 1 . 2 1 3 2 Engine 11 | 1 . . . . 2 . . . . 1 . . . 2 2 . . 1 . 1 1 . . . . . . . . . . . . . . . . . Core 6 | . 1 . . . . . . . . . . . . . . . . . . . . . . 1 . 1 . . . . 1 1 1 . . . . . Reactor 19 | . . . . . . . . . . . . . . . . 3 . 1 . 2 . . 1 . . . 1 . 1 . 1 1 . . 2 1 3 2 Propulsion 50 | 2 2 . . 1 3 3 6 . 3 2 . . 1 1 3 1 . 1 1 2 . . . . . 1 1 3 . . 1 2 . 2 . 1 3 4 Treads 50 | 2 2 . . 1 3 3 6 . 3 2 . . 1 1 3 1 . 1 1 2 . . . . . 1 1 3 . . 1 2 . 2 . 1 3 4 Leg . | . . . . . . . . . . . . . . . . . . . . . . . . . . . . . . . . . . . . . . . Wheel . | . . . . . . . . . . . . . . . . . . . . . . . . . . . . . . . . . . . . . . . Hover . | . . . . . . . . . . . . . . . . . . . . . . . . . . . . . . . . . . . . . . . Flight . | . . . . . . . . . . . . . . . . . . . . . . . . . . . . . . . . . . . . . . . Utility 196 | 1 4 . . 4 5 3 4 2 3 4 8 8 8 4 6 1 1 6 4 6 . 7 5 5 6 1 15 10 4 8 . 6 1 4 8 8 12 14 Device 48 | . 2 . . 2 1 . 2 . . 1 1 2 . . 2 1 . 1 1 . . 3 1 1 3 . 8 1 . . . 2 . 2 1 3 4 3 Storage 9 | 1 1 . . 1 1 . . . 1 . . 1 . . 1 . . . . . . . . . . . . . . . . . . . . . . 2 Processor 6 | . . . . . . 1 . . . . . . . . . . . . . . . . . . . . . . . . . . . . 2 . . 3 Hackware 92 | . . . . . . . 1 2 1 2 6 2 4 4 3 . 1 5 2 5 . 3 3 3 2 1 4 6 4 7 . 3 1 1 5 4 5 2 Protection 41 | . 1 . . 1 3 2 1 . 1 1 1 3 4 . . . . . 1 1 . 1 1 1 1 . 3 3 . 1 . 1 . 1 . 1 3 4 Artifact . | . . . . . . . . . . . . . . . . . . . . . . . . . . . . . . . . . . . . . . . Weapon 61 | 2 4 3 . . 1 5 2 . 2 . 3 . 2 3 1 1 1 3 . 3 . . 1 . 1 . 2 1 2 2 3 . . 3 2 2 1 5 Energy Gun 8 | 2 . 1 . . . 3 . . . . . . . 2 . . . . . . . . . . . . . . . . . . . . . . . . Energy Cannon 21 | . . . . . . . 1 . . . 3 . 2 . . 1 . 1 . 1 . . . . 1 . 1 1 1 . 2 . . 2 2 . 1 1 Ballistic Gun 7 | . 3 1 . . 1 . . . 1 . . . . . . . . . . . . . . . . . . . . . . . . . . . . 1 Ballistic Cannon 3 | . 1 . . . . . . . . . . . . . . . . . . . . . . . . . . . . . . . . . . . . 2 Launcher 5 | . . 1 . . . 1 . . . . . . . . . . 1 . . 1 . . . . . . . . . . . . . . . 1 . . Special Weapon 14 | . . . . . . . 1 . . . . . . 1 1 . . 1 . 1 . . 1 . . . 1 . 1 2 1 . . 1 . 1 . 1 Impact Weapon 1 | . . . . . . 1 . . . . . . . . . . . . . . . . . . . . . . . . . . . . . . . . Slashing Weapon 2 | . . . . . . . . . 1 . . . . . . . . 1 . . . . . . . . . . . . . . . . . . . . Piercing Weapon . | . . . . . . . . . . . . . . . . . . . . . . . . . . . . . . . . . . . . . . . Special Melee Weapon . | . . . . . . . . . . . . . . . . . . . . . . . . . . . . . . . . . . . . . . . Unidentified Prototypes 14 | . . . . 2 1 . . . . . 1 . . . 2 2 . 1 . . . . . . . . . . . . . . . 2 1 . 1 1 Parts Lost 81 | . 3 . . . . 1 2 . 2 2 . . . 3 3 . . 3 1 . . 3 1 1 2 . 4 3 1 1 2 3 5 4 2 3 4 22 Power 15 | . 1 . . . . . . . . . . . . 1 1 . . 2 . . . . 1 1 . . . . . . 1 1 1 . . . 2 3 Propulsion 13 | . 1 . . . . . 1 . 1 . . . . 1 . . . . . . . . . . . . . 2 . . . . . . . 1 . 6 Utility 42 | . . . . . . 1 . . 1 1 . . . 1 1 . . 1 1 . . 2 . . 1 . 3 1 . 1 1 1 3 4 2 2 2 12 Weapon 11 | . 1 . . . . . 1 . . 1 . . . . 1 . . . . . . 1 . . 1 . 1 . 1 . . 1 1 . . . . 1 Highest Loss Streak 18 | . 3 . . . . 1 1 . 1 2 . . . 1 2 . . 1 1 . . 2 1 1 1 . 2 1 1 1 1 3 3 4 1 1 2 18 To Critical Strikes 1 | . . . . . . . . . . . . . . . 1 . . . . . . . . . . . . . . . . . . . . . . . Average Backups 19 | 1 10 15 15 15 19 19 18 17 18 18 16 17 17 17 18 18 17 21 21 21 21 20 20 20 21 20 21 21 22 23 22 23 23 21 18 21 20 19 Power 1 | . 1 1 1 1 2 2 2 2 2 1 1 1 1 . . 2 2 1 2 1 1 1 2 2 2 2 2 2 2 2 1 1 1 . . 2 1 1 Propulsion 2 | . 2 4 4 4 5 5 4 4 3 3 2 2 2 1 2 3 2 2 2 2 2 2 1 2 2 1 2 . . . 1 1 1 2 3 3 2 2 Utility 10 | . 1 2 3 5 5 6 7 6 7 8 8 9 9 10 9 7 6 11 12 13 14 13 12 12 14 13 13 14 16 15 14 16 17 15 9 10 12 10 Weapon 4 | . 4 7 6 5 6 4 3 4 4 3 4 4 4 4 5 5 5 4 3 3 2 2 2 3 2 2 2 3 3 4 3 2 2 3 5 4 4 5 Tool/Special . | . . . . . . . . . . . . . . . . . . . . . . . . . . . . . . . . . . . . . . . Unused Backups 70 | . 2 1 1 . 6 3 1 2 . 3 1 7 1 2 1 . . 6 2 1 . 2 . 3 . 2 2 2 1 5 . . 1 1 . 2 3 6 Power 4 | . . . . . 2 . . . . . . . . . . . . . 1 . . . . . . . . . . . . . . . . . . 1 Propulsion 6 | . . . . . 1 . 1 1 . 1 . . 1 . . . . . . . . . . . . . . . . . . . . . . . 1 . Utility 48 | . . . . . 2 3 . . . 2 1 7 . 2 1 . . 5 1 1 . 2 . 3 . 2 1 2 . 4 . . 1 1 . 1 2 4 Weapon 9 | . 1 1 1 . 1 . . . . . . . . . . . . 1 . . . . . . . . 1 . 1 1 . . . . . 1 . . Tool/Special 3 | . 1 . . . . . . 1 . . . . . . . . . . . . . . . . . . . . . . . . . . . . . 1 Average Slot Usage (%) 85 | . 95 100 100 100 96 97 89 90 90 87 75 76 83 83 85 86 86 85 82 83 86 84 81 77 73 83 81 80 83 83 79 79 79 78 81 81 79 78 Engine 3 | . 11 . . . 8 9 8 9 7 6 7 7 7 7 12 3 . 1 6 2 1 . . . . . . . . . . . . . . . . . Core 2 | . 2 14 14 14 . . . . . . . . . . . . . . . . . . . 4 5 5 4 . . . 4 4 4 9 6 4 2 . Reactor 5 | . . . . . . . . . . . . . . . . 9 13 11 6 9 10 13 11 5 5 5 5 10 10 10 9 9 8 3 4 8 13 15 Treads 17 | . 28 28 28 28 27 27 26 27 29 25 15 15 15 15 12 13 13 13 13 13 13 13 10 11 10 14 15 14 15 15 14 14 14 14 13 13 11 11 Device 14 | . 9 . . . 14 10 6 6 13 7 6 13 14 15 13 13 13 15 9 9 13 16 18 12 14 20 21 21 20 22 23 21 22 18 17 18 17 15 Storage 6 | . 14 14 14 14 9 9 9 9 7 7 7 7 7 7 6 6 6 6 6 6 6 6 5 5 5 5 5 5 5 5 4 4 4 4 4 4 4 4 Processor 1 | . . . . . . 6 9 9 7 6 . . . . . . . . . . . . . . . . . . . . . . . . 3 4 4 6 Hackware 10 | . . . . . . . 2 2 . 7 15 3 12 15 13 13 13 11 20 20 20 20 17 17 15 15 11 11 15 15 12 11 12 15 14 15 15 9 Protection 7 | . . 14 14 13 17 15 9 9 7 7 7 12 9 6 12 13 13 11 6 6 6 1 2 5 5 5 6 4 4 3 . 3 . 3 7 4 2 7 Energy Gun 3 | . 18 . . . . 10 15 11 12 9 6 11 6 6 4 . . . . . . . . . . . . . . . . . . . . . . . Energy Cannon 4 | . . . . . . . . . . . 2 1 3 3 4 8 10 11 10 8 7 10 5 5 5 5 6 5 4 4 4 4 4 4 4 5 4 3 Ballistic Gun 2 | . 8 27 28 28 18 4 . . . . . . . . . . . . . . . . . . . . . . . . . . . . . . . . Special Weapon 2 | . . . . . . . . 3 . . 3 . 4 2 3 3 2 . 1 3 4 1 5 5 5 5 3 5 4 5 3 4 3 3 3 2 3 3 Peak Build Rating 214 | 6 14 15 16 25 38 35 35 40 52 67 73 71 72 72 98 99 92 98 93 99 100 109 126 124 133 136 148 147 138 143 162 163 157 157 177 179 204 214 Average Rating 96 | 4 8 14 15 17 31 32 33 37 48 50 67 67 69 71 81 92 90 93 90 94 96 102 122 120 129 133 139 139 136 138 159 155 156 150 166 174 197 197 On Entrance 91 | . 6 14 15 16 19 35 31 34 39 48 67 69 69 72 71 88 90 92 90 92 96 100 107 124 122 132 135 147 138 137 143 159 157 125 130 173 174 203 Avg Prop Armor Cover (%) 6 | . . . . . . . . . . . . . . . . . . . . . . . . . . . . . . . . . . . . . . 6 Naked Turns 19 | . . . . . . . . . . . . . . . . . . . . . . . . . . . . . . . . . . . . . . 19 Heaviest Build 245 | 12 34 34 34 59 73 72 75 79 73 79 87 92 89 93 137 148 145 147 156 159 151 151 148 153 162 154 172 168 160 156 182 186 186 182 206 205 234 245 Greatest Support 235 | 40 43 43 43 43 63 63 67 67 89 150 150 150 150 150 160 160 155 155 155 155 155 155 160 160 160 183 188 188 178 178 230 230 220 220 205 210 235 235 Greatest Overweight (x) 2 | . . . . 1 1 1 1 1 . . . . . . . . . . 1 1 . . . . 1 . 1 1 . . 1 . . . 1 . . 2 Average Overweight (x) . | . . . . . . . 1 1 . . . . . . . . . . . . . . . . . . . . . . . . . . . . . . Largest Inventory Capacity 25 | 8 15 15 15 20 20 20 20 20 20 20 20 20 20 20 25 25 25 25 25 25 25 25 25 25 25 25 25 25 25 25 25 25 25 25 25 25 25 25 Average Capacity 22 | 7 13 15 15 16 20 20 20 20 20 20 20 20 20 20 24 25 25 25 25 25 25 25 25 25 25 25 25 25 25 25 25 25 25 25 25 25 25 24 Most Carried 25 | 2 15 15 15 18 20 20 20 20 20 20 20 20 20 20 25 25 21 25 25 25 25 25 25 25 25 25 25 25 25 25 25 25 25 25 25 25 25 25 Average Carried 21 | 1 10 14 15 15 19 19 19 18 19 18 18 19 19 19 20 22 20 24 24 24 25 24 23 23 24 22 23 22 22 23 24 24 24 24 21 24 23 22 Final Capacity 25 | 8 15 15 15 20 20 20 20 20 20 20 20 20 20 20 25 25 25 25 25 25 25 25 25 25 25 25 25 25 25 25 25 25 25 25 25 25 25 5 Final Carried 25 | 2 15 15 15 18 20 20 19 20 20 20 18 20 20 20 22 20 21 25 25 25 25 25 23 25 22 23 23 22 25 25 25 25 24 25 25 23 25 3 Class Distribution -------------------- 58% | Botlord-Mutant 24% | Mutant 15% | Bothacker-Mutant Dominant Class ---------------- Mutant | -10/Materials Mutant | -10/Mines Mutant | -10/Exiles Mutant | -9/Mines Mutant | -8/Materials Mutant | -8/Garrison Mutant | -8/Materials Mutant | -8/Garrison Bothacker-Mutant | -7/Factory Bothacker-Mutant | -7/Garrison Bothacker-Mutant | -7/Factory Bothacker-Mutant | -7/Garrison Bothacker-Mutant | -7/Factory Botlord-Mutant | -7/Garrison Botlord-Mutant | -6/Factory Bothacker-Mutant | -6/Waste Bothacker-Mutant | -6/Factory Botlord-Mutant | -6/Garrison Botlord-Mutant | -6/Factory Botlord-Mutant | -6/Garrison Botlord-Mutant | -6/Factory Botlord-Mutant | -6/Garrison Botlord-Mutant | -5/Factory Botlord-Mutant | -5/Garrison Botlord-Mutant | -4/Factory Botlord-Mutant | -4/Garrison Botlord-Mutant | -4/Factory Botlord-Mutant | -4/Garrison Botlord-Mutant | -4/Factory Botlord-Mutant | -4/Garrison Botlord-Mutant | -3/Research Botlord-Mutant | -3/Garrison Botlord-Mutant | -3/Research Botlord-Mutant | -3/Testing Botlord-Mutant | -2/Research Botlord-Mutant | -2/Garrison Botlord-Mutant | -1/Access Botlord-Mutant | -1/Command Resources | -11 -10 -10 -10 -9 -8 -8 -8 -8 -7 -7 -7 -7 -7 -7 -6 -6 -6 -6 -6 -6 -6 -6 -5 -5 -4 -4 -4 -4 -4 -4 -3 -3 -3 -3 -2 -2 -1 -1 ----------- Run | Yrd Mat Min Exi Min Mat Gar Mat Gar Fac Gar Fac Gar Fac Gar Fac Was Fac Gar Fac Gar Fac Gar Fac Gar Fac Gar Fac Gar Fac Gar Res Gar Res Tes Res Gar Acc Com Matter Collected 14039 | 213 329 106 . 52 621 251 323 302 162 597 360 441 265 572 359 90 117 459 199 679 112 280 330 309 278 9 798 406 431 367 190 484 221 557 516 348 901 1005 Remotely 520 | . . . . . . . . . . . . . . . . . . . . . . . . . . . . . . . . . . . . . . 520 Salvage Created 28077 | . 725 126 . . 945 336 1028 531 228 1165 215 466 254 788 1157 . 413 1645 400 1056 . 844 332 320 1186 37 1631 1280 655 723 829 463 599 233 1674 1287 1893 2613 Parts 1265 | . 42 13 . . 38 22 51 27 13 61 21 19 10 43 32 . 16 60 20 60 . 44 25 15 50 . 65 62 32 36 49 26 30 8 63 45 111 56 Haulers Intercepted 11 | . 1 . . . 4 . 5 . . . . . . . . . . . . . . . . . . . . . . . . . . . 1 . . . Recyclers Shooed 18 | . . . . . . . . . . . . . 1 . 3 . . . 1 . . . 1 . 4 . 3 . 2 . . . . . 2 . . 1 Parts Field Recycled . | . . . . . . . . . . . . . . . . . . . . . . . . . . . . . . . . . . . . . . . Retrieved Matter . | . . . . . . . . . . . . . . . . . . . . . . . . . . . . . . . . . . . . . . . Parts Self-Destructed . | . . . . . . . . . . . . . . . . . . . . . . . . . . . . . . . . . . . . . . . Prevented . | . . . . . . . . . . . . . . . . . . . . . . . . . . . . . . . . . . . . . . . Parts Restored . | . . . . . . . . . . . . . . . . . . . . . . . . . . . . . . . . . . . . . . . Kills | -11 -10 -10 -10 -9 -8 -8 -8 -8 -7 -7 -7 -7 -7 -7 -6 -6 -6 -6 -6 -6 -6 -6 -5 -5 -4 -4 -4 -4 -4 -4 -3 -3 -3 -3 -2 -2 -1 -1 ------- Run | Yrd Mat Min Exi Min Mat Gar Mat Gar Fac Gar Fac Gar Fac Gar Fac Was Fac Gar Fac Gar Fac Gar Fac Gar Fac Gar Fac Gar Fac Gar Res Gar Res Tes Res Gar Acc Com Combat Hostiles Destroyed 434 | . 17 5 . . 8 15 26 18 9 25 8 17 5 18 10 . 6 28 4 26 . 15 5 6 15 . 20 22 11 13 11 7 7 . 12 13 23 9 Melee 2 | . . . . . . . . . . . . . . . . . . . . . . . . . . . . . . . 1 1 . . . . . . Guns 107 | . 12 3 . . 8 9 26 4 5 8 4 13 . 11 4 . . . . . . . . . . . . . . . . . . . . . . . Cannons 209 | . 4 . . . . . . 2 . . 2 4 5 5 6 . 4 17 4 11 . 10 5 6 10 . 15 20 10 12 6 5 5 . 9 7 18 7 AOE 77 | . 1 2 . . . 6 . 12 4 17 2 . . 2 . . 1 9 . 14 . 5 . . 1 . . . . 1 . . . . . . . . Classes Destroyed 25 | . 6 . . . 3 2 1 1 . . . 1 . 1 2 . 1 . . 1 . . 1 . . . 1 . . . . . . 1 . 1 2 . Worker 22 | . . . . . . . 1 . 2 . 1 . 1 . . . 1 . 1 . . . . . 3 . 2 . . . . . 1 . 3 . 1 5 Builder 5 | . 1 . . . . . . . . . 1 . . . . . . . . . . . . . . . . . 1 . . . . . 2 . . . Tunneler 2 | . . . . . . . . . . . . . . . . . . . . . . . 1 . 1 . . . . . . . . . . . . . Hauler 11 | . 1 . . . 4 . 5 . . . . . . . . . . . . . . . . . . . . . . . . . . . 1 . . . Recycler 17 | . . . . . 3 . . . . . . . . . 5 . . . 1 . . . . . 1 . 2 . . . . . . . 3 . . 2 Mechanic 1 | . . . . . . . . . . . . . . . . . 1 . . . . . . . . . . . . . . . . . . . . . Operator 3 | . 1 . . . . . . . . . . . . . . . . . . . . . . . . . 1 . . . . . . . 1 . . . Drone 1 | . . . . . . . . . . . . . . . . . . . . . . . . . . . . . . . . . . . . . 1 . Turret 3 | . . . . . . . . . . . . . . . . . . . . . . . . . . . . . . . . . . . . . 3 . Watcher 13 | . 1 . . . 2 . 4 . 1 . . . . . . . . . 1 . . . . . 2 . . . . . . . . 1 . . . 1 Swarmer 88 | . 3 3 . . . 7 2 4 4 18 3 5 . 4 . . . 8 . 12 . 4 . . . . . 3 4 4 . . . . . . . . Cutter 13 | . . . . . . . . . . . . . . 2 . . . . . 3 . . . . . . . 2 . 2 . . . . 4 . . . Grunt 117 | . 14 2 . . 4 . 14 11 . 5 . . 3 1 1 . 6 17 . 3 . 4 . 5 1 . 7 4 3 3 . 2 2 1 2 2 . . Brawler 5 | . . . . . 1 1 . . . 1 . . 1 . . . . . . . . 1 . . . . . . . . . . . . . . . . Duelist 11 | . . . . . . 1 2 . . . . . . . . . . . . 2 . 2 . . 1 . . 1 . . . . . . 1 . 1 . Protector 2 | . . . . . . . . . . . . . . . 1 . . . . . . . . . . . . . . . . . . . . 1 . . Researcher 1 | . . . . . . . . . . . . . . . . . . . . . . . . . . . . . . . . . . 1 . . . . Sentry 42 | . . . . . 3 3 8 1 2 . . 6 . 5 . . . 1 1 . . 1 1 . 1 . . 3 1 . 1 . 1 1 . 2 . . Demolisher 1 | . . . . . . . . . . . . . . . . . . . . . . . . . . . . . . . . . . . . 1 . . Specialist 17 | . . . . . . . . . . . . 1 . . 2 . . 2 . . . . . . . . 3 3 . . 2 1 . . . 1 2 . Hunter 36 | . . . . . . . . 1 1 . 2 . . 2 4 . . . 1 1 . . . . 4 . . . 1 . 3 . . . 2 6 5 3 Programmer 110 | . . . . . . 3 . 2 2 1 3 5 1 4 1 . 1 4 2 3 . 7 4 1 9 . 11 6 3 4 4 3 5 . 2 2 13 4 Heavy 1 | . . . . . . . . . . . . . . . 1 . . . . . . . . . . . . . . . . . . . . . . . Behemoth 7 | . . . . . . . . . . . . . . . . . . . . . . . . . . . 1 1 . . . 1 . . 2 . 2 . M Guard 1 | . . . . . . . . . . . . . . . . . . . . . . . . . . . . . . . . . . . . . . 1 Executioner 3 | . . . . . . . . . . . . . . . . . . . . 2 . . . . . . . . . . 1 . . . . . . . Best Kill Streak 9 | . 5 3 . . 4 5 4 7 5 9 3 4 4 5 3 . 4 7 1 9 . 7 2 3 4 . 6 4 2 6 5 2 4 1 9 2 3 4 Combat Bots Only 9 | . 5 3 . . 3 5 4 7 4 9 2 4 3 5 3 . 3 7 1 9 . 7 2 3 4 . 3 4 2 6 5 2 4 . 4 2 3 2 Max Kills in Single Turn 6 | . 1 2 . . 2 3 2 3 4 6 2 2 2 2 1 . 2 2 1 4 . 4 1 1 2 . 2 1 1 1 1 1 1 1 2 1 1 1 Gunslinging 1 | . . . . . 1 1 1 . . . . . . . . . . . . . . . . . . . . . . . . . . . . . . . Exploded 6 | . 1 2 . . . 3 . 3 3 6 1 . . 2 . . 1 2 . 4 . 4 . . 1 . . . . 1 . . . . . . . . Melee 1 | . . . . . . . . . . . . . . . . . . . . . . . . . . . . . . . 1 1 . . . . . . Uniques/NPCs Destroyed 2 | . . . . . . . . . . . . . . . . . . . . . . . . . . . . . . . . . . . 1 . . 1 DW-4LL (-2/Research) MAIN.C Shell (-1/Command) Combat | -11 -10 -10 -10 -9 -8 -8 -8 -8 -7 -7 -7 -7 -7 -7 -6 -6 -6 -6 -6 -6 -6 -6 -5 -5 -4 -4 -4 -4 -4 -4 -3 -3 -3 -3 -2 -2 -1 -1 -------- Run | Yrd Mat Min Exi Min Mat Gar Mat Gar Fac Gar Fac Gar Fac Gar Fac Was Fac Gar Fac Gar Fac Gar Fac Gar Fac Gar Fac Gar Fac Gar Res Gar Res Tes Res Gar Acc Com Hostile Shots Fired 3939 | . 58 7 . 12 34 45 85 31 88 87 94 200 34 372 120 . 51 139 74 128 . 110 31 34 129 . 301 241 86 57 89 101 93 44 71 109 325 459 Missed 1199 | . 15 1 . 3 9 11 21 11 28 29 37 68 13 130 29 . 20 51 25 43 . 40 8 7 34 . 112 71 26 18 30 21 23 15 20 29 85 116 Hits 2740 | . 43 6 . 9 25 34 64 20 60 58 57 132 21 242 91 . 31 88 49 85 . 70 23 27 95 . 189 170 60 39 59 80 70 29 51 80 240 343 Melee 28 | . . . . . . 1 2 . . . . . . 2 . . . . . 10 . 1 2 . . . . . . . . . 1 . 9 . . . Projectile 2712 | . 43 6 . 9 25 33 62 20 60 58 57 132 21 240 91 . 31 88 49 75 . 69 21 27 95 . 189 170 60 39 59 80 69 29 42 80 240 343 AOE 22 | . . . . . . . . . . . 1 . . . . . . . . . . 1 . . . . . . 1 2 . . . . 2 9 2 4 Critical Strikes 104 | . . . . . 3 3 2 1 . 1 1 3 . 2 4 . 2 6 . 5 . 5 3 2 4 . 4 6 2 . 6 6 3 2 4 . 5 19 Actively Blocked 1 | . . . . . . . . . . . . . . . . . . . . . . . . . . . . . . . . . . . . . . 1 Part Disruptions 31 | . . . . . . . . . . . . . . . . . . . 1 . . . 1 . . . 1 . . . 1 . . . . . 1 26 Damage Taken 36546 | . 495 80 . 110 389 494 1017 280 584 862 686 839 160 1378 1369 . 308 691 289 1091 . 929 637 485 1495 38 1853 1333 645 464 775 753 1234 418 800 1415 3196 8954 Core 3549 | . 104 14 . 18 15 48 145 56 11 39 54 79 2 87 212 . 27 61 35 75 . 33 53 67 288 . 57 86 74 . 67 20 11 28 32 51 114 1486 Absorbed by Shields 18257 | . . . . . . . . . . . 99 547 154 730 500 . 322 707 307 754 . 338 . 61 735 40 793 1375 664 487 546 658 604 314 789 993 2081 3659 Reduced by Siege Mode 1651 | . . . . . . . . . . . . . 14 79 21 . . 6 . 15 . 42 29 15 35 . 53 47 . . 39 65 185 . . 3 441 562 Redirected to Shielding 139 | . . . . . . . . . . . . . . . . . . . . . . . . . . . . . . . . . . . . . . 139 Ignored by Resistances 1024 | . . . . . . . . . . . . . . 244 . . . . . 238 . . . . . . . . . . . . . . . . . 542 Regen/Repaired (Parts) 3460 | . . . . . . . 149 . 11 246 35 113 548 . 225 87 . . 74 . . . 277 . 536 19 33 . 179 . . . 270 45 180 . 255 178 Core Remaining (%) 70 | 100 . . . 45 . . . 52 . . . . . 61 . . . . . . . 47 . 88 . . . . . 56 . . . 90 . 94 . . Volleys Fired 2652 | . 51 8 . 4 57 26 95 33 24 33 37 64 37 76 66 . 23 109 35 101 4 55 45 65 110 12 212 151 103 81 55 85 74 54 76 58 218 315 Largest 2 | . 2 2 . 2 2 2 2 2 2 2 2 2 2 2 2 . 2 2 2 2 2 2 1 1 1 1 2 1 1 1 1 1 1 1 2 2 1 2 Hottest 240 | . 80 53 . 46 46 130 130 140 130 130 145 145 60 150 150 . 60 120 65 125 125 125 35 105 105 105 210 105 105 105 113 113 105 113 240 240 120 120 Shots Fired 3312 | . 95 16 . 8 114 47 182 50 39 46 50 108 54 124 111 . 39 169 56 133 7 89 47 64 113 16 220 151 103 83 54 83 74 54 94 74 217 328 Gun 704 | . 86 14 . 8 114 42 174 24 30 28 20 78 1 50 21 . . . . . . . . . . . . . . . . . . . . . . 14 Cannon 1995 | . 9 . . . . . 5 6 1 . 12 17 32 54 74 . 32 139 46 66 5 74 36 40 96 10 184 126 70 63 49 56 62 20 70 59 177 305 Launcher 71 | . . 2 . . . 5 . 8 3 13 2 . . 1 . . 2 15 . 12 . 1 . . . . . . . . . . . . . 7 . . Special 542 | . . . . . . . 3 12 5 5 16 13 21 19 16 . 5 15 10 55 2 14 11 24 17 6 36 25 33 20 5 27 12 34 24 8 40 9 Kinetic 237 | . 47 14 . 8 114 12 . . . . . . . . . . . . . . . . . . . . . . . . . . . . . . . 42 Thermal 2227 | . . . . . . 30 179 30 31 28 32 95 33 104 95 . 32 139 46 66 5 74 36 40 74 10 177 126 62 63 24 56 47 12 61 33 141 246 Explosive 34 | . . 2 . . . 5 . 8 3 13 2 . . 1 . . . . . . . . . . . . . . . . . . . . . . . . Electromagnetic 272 | . 48 . . . . . . . . . . . . . . . 2 15 . 12 . 1 . . 22 . 7 . 8 . 25 . 15 8 9 33 36 31 Robot Hit Streak 43 | . 6 7 . 15 18 21 39 15 21 12 6 40 7 16 25 . 9 27 10 16 4 7 11 11 9 5 15 17 14 18 13 11 8 12 17 8 12 43 Robot Miss Streak 7 | . 5 1 . . 3 2 5 3 3 6 5 4 3 7 3 . 1 2 3 2 1 2 4 2 3 2 4 4 4 4 3 3 2 3 7 3 6 6 Penetration Max . | . . . . . . . . . . . . . . . . . . . . . . . . . . . . . . . . . . . . . . . Secondary Targets 10 | . 3 . . . 1 1 2 1 . . 1 1 . . . . . . . . . . . . . . . . . . . . . . . . . . Max Gunslinging Chain 1 | . 1 . . . 1 1 1 1 . . 1 1 . . . . . . . . . . . . . . . . . . . . . . . . . . Capacitor 1266 | . . . . . . . . . . . . . . . . . . . . . . . 36 40 91 10 151 122 70 63 49 56 62 20 31 11 177 277 Shots Hit Robots 2320 | . 53 11 . 8 80 37 160 37 36 58 39 93 33 100 84 . 31 100 32 99 4 46 27 44 77 7 117 106 61 54 37 53 48 31 66 41 139 271 Core Hits 1313 | . 32 9 . 2 31 50 253 47 58 70 30 118 6 59 63 . 13 50 10 32 2 22 6 8 28 3 34 29 14 13 12 10 11 4 23 19 45 97 Critical Kills 24 | . . . . . . . . . . . . . . . . . . 3 1 1 . . . . 2 . 6 2 1 1 . 1 1 . 3 . 1 1 Critical Parts Destroyed . | . . . . . . . . . . . . . . . . . . . . . . . . . . . . . . . . . . . . . . . Critical Strikes 34 | . . . . . . . . . . 3 . . . 2 . . . 3 1 1 . . . . 2 . 7 2 1 1 . 1 1 . 4 . 1 4 Meltdown 24 | . . . . . . . . . . . . . . . . . . 3 1 1 . . . . 2 . 6 2 1 1 . 1 1 . 3 . 1 1 Destroy 2 | . . . . . . . . . . . . . . . . . . . . . . . . . . . . . . . . . . . . . . 2 Blast 1 | . . . . . . . . . . . . . . . . . . . . . . . . . . . . . . . . . . . . . . 1 Corrupt 2 | . . . . . . . . . . . . . . . . . . . . . . . . . . . 1 . . . . . . . 1 . . . Sever 5 | . . . . . . . . . . 3 . . . 2 . . . . . . . . . . . . . . . . . . . . . . . . Melee Attacks 107 | . . . . . . 7 8 8 1 47 5 6 . 23 . . . 2 . . . . . . . . . . . . . . . . . . . . Impact 23 | . . . . . . 7 8 8 . . . . . . . . . . . . . . . . . . . . . . . . . . . . . . Slashing 84 | . . . . . . . . . 1 47 5 6 . 23 . . . 2 . . . . . . . . . . . . . . . . . . . . Piercing . | . . . . . . . . . . . . . . . . . . . . . . . . . . . . . . . . . . . . . . . Sneak Attacks 1 | . . . . . . . . . . . 1 . . . . . . . . . . . . . . . . . . . . . . . . . . . Combat Hostiles . | . . . . . . . . . . . . . . . . . . . . . . . . . . . . . . . . . . . . . . . Follow-up Attacks . | . . . . . . . . . . . . . . . . . . . . . . . . . . . . . . . . . . . . . . . Damage Inflicted 72874 | . 845 253 . 115 1287 1211 2706 1286 1019 4127 726 1596 647 2580 2010 . 1313 3158 741 2358 48 1663 878 948 3729 151 4019 3157 1536 1576 1338 1446 1885 432 3037 2117 5033 11903 Guns 10385 | . 662 159 . 107 1262 744 2646 370 539 329 265 1417 . 753 551 . . . . . . . . . . . . . . . . . . . . . . 581 Cannons 50019 | . 84 . . . . . . 100 . . 146 134 611 1032 1426 . 654 2338 653 1370 41 1451 810 948 2760 75 3461 3138 1418 1576 1307 1416 1853 379 3037 1612 4937 11252 Explosions 8425 | . 64 62 . . . 467 . 816 467 1672 232 . . 264 . . 643 820 . 988 . 212 . . 887 . 326 . . . . . . . . 505 . . Melee 2719 | . . . . . . . . . . 2126 78 . . 515 . . . . . . . . . . . . . . . . . . . . . . . . Ramming 1326 | . 35 32 . 8 25 . 60 . 13 . 5 45 36 16 33 . 16 . 88 . 7 . 68 . 82 76 232 19 118 . 31 30 32 53 . . 96 70 Kinetic 3566 | . 392 159 . 107 1262 177 . . . . . . . . . . . . . . . . . . . . . . . . . . . . . . . 1469 Thermal 52940 | . 64 . . . . 567 2646 470 539 329 411 1551 611 1785 1977 . 1017 2338 653 1743 41 1586 810 948 2227 75 3640 3138 1208 1576 658 1416 1306 99 2627 959 3995 9930 Explosive 4867 | . . 62 . . . 467 . 816 467 1672 232 . . 264 . . . . . . . . . . 887 . . . . . . . . . . . . . Electromagnetic 7456 | . 354 . . . . . . . . . . . . . . . 280 820 . 615 . 77 . . 533 . 147 . 210 . 649 . 547 280 410 1158 942 434 Impact . | . . . . . . . . . . . . . . . . . . . . . . . . . . . . . . . . . . . . . . . Slashing 2719 | . . . . . . . . . . 2126 78 . . 515 . . . . . . . . . . . . . . . . . . . . . . . . Piercing . | . . . . . . . . . . . . . . . . . . . . . . . . . . . . . . . . . . . . . . . Highest Corruption 56 | . . . . . . 2 2 . 2 2 2 5 8 10 1 1 1 3 1 4 4 9 5 5 13 13 16 2 5 5 11 17 44 56 4 5 5 29 Average Corruption 7 | . . . . . . 1 1 . 1 2 1 2 5 9 1 1 1 1 1 2 4 8 4 5 5 13 12 1 3 5 8 16 19 44 2 4 3 11 Corruption Purged 27 | . . . . . . . 2 . . . 2 . . . . . . 4 1 . . . . . . . 16 2 . . . . . . . . . . Corruption Blocked . | . . . . . . . . . . . . . . . . . . . . . . . . . . . . . . . . . . . . . . . Effects 873 | . . . . . . . 19 . 2 14 11 19 22 70 2 5 4 4 10 21 15 34 20 30 32 43 111 16 35 29 7 61 44 55 6 30 41 61 Message Errors 214 | . . . . . . . 4 . . 8 1 9 6 17 . 3 1 . 1 7 1 4 4 4 12 8 27 7 12 6 1 14 12 14 2 9 9 11 Matter Fused 175 | . . . . . . . 6 . . 2 1 4 4 12 . . . . 4 2 3 14 8 6 2 9 24 2 7 10 2 8 4 14 1 5 11 10 Heat Flow Errors 105 | . . . . . . . . . 2 1 4 2 1 3 . . 1 1 1 3 2 3 . 3 5 9 16 1 9 1 1 9 9 4 . 4 3 7 Energy Discharges 105 | . . . . . . . 5 . . . 2 2 3 9 . . . . . 2 4 7 3 5 3 7 15 4 4 3 . 8 3 7 2 4 1 2 Parts Rejected 14 | . . . . . . . . . . . . . . 2 . . . . . . . . 1 1 . . 3 . . 1 . 1 2 . . 1 . 2 Parts Fused 13 | . . . . . . . 1 . . 1 . 1 . 2 . 1 . . . 1 . . . 1 1 1 1 . . 1 . . 1 . . . . . Data Loss (minor) 95 | . . . . . . . 1 . . 1 . . 5 6 1 1 2 2 2 4 4 3 1 2 4 2 12 . 1 3 . 10 3 7 1 1 8 8 Data Loss (major) 44 | . . . . . . . 2 . . . . . 1 6 . . . . 2 1 . . 1 3 1 3 4 2 2 2 . 4 1 3 . 4 1 1 Misfires 45 | . . . . . . . . . . 1 3 1 1 6 . . . . . . 1 2 2 2 3 4 3 . . 2 . 1 3 3 . 1 3 3 Alerts 17 | . . . . . . . . . . . . . 1 3 1 . . 1 . 1 . 1 . . 1 . . . . . 2 2 . . . 1 1 2 Misdirections 8 | . . . . . . . . . . . . . . . . . . . . . . . . . . . 2 . . . . 1 3 . . . . 2 Weapon Failures 38 | . . . . . . . . . . . . . . 4 . . . . . . . . . 3 . . 4 . . . 1 3 3 3 . . 4 13 Overload Shots 5 | . . . . . . . . . . . . . . 3 . . . 1 . . . . . 1 . . . . . . . . . . . . . . Effects 2 | . . . . . . . . . . . . . . 1 . . . . . . . . . 1 . . . . . . . . . . . . . . Energy Bleed 1 | . . . . . . . . . . . . . . . . . . . . . . . . 1 . . . . . . . . . . . . . . Heat Surge 1 | . . . . . . . . . . . . . . 1 . . . . . . . . . . . . . . . . . . . . . . . . Overflow Damage 2310 | . . . . . . 7 5 . 111 130 2 7 41 89 73 . 128 83 17 42 . 9 193 69 117 . 165 70 81 66 62 86 70 60 186 104 68 169 Projectiles 1763 | . . . . . . . . . . . . 7 41 24 73 . 32 83 17 39 . 9 182 69 92 . 116 70 68 66 62 86 70 45 186 104 68 154 Explosions 444 | . . . . . . 7 . . 111 98 2 . . 65 . . 96 . . 3 . . . . 14 . 48 . . . . . . . . . . . Melee 103 | . . . . . . . 5 . . 32 . . . . . . . . . . . . 11 . 11 . 1 . 13 . . . . 15 . . . 15 Knockbacks 17 | . . . . . . . . . . . . 1 . . 1 . . . . . . . . . 1 . 2 . 3 . . . . 1 . . . 8 Impact 7 | . . . . . . . . . . . . 1 . . 1 . . . . . . . . . 1 . 1 . 2 . . . . 1 . . . . Kinetic 8 | . . . . . . . . . . . . . . . . . . . . . . . . . . . . . . . . . . . . . . 8 Secondary 2 | . . . . . . . . . . . . . . . . . . . . . . . . . . . 1 . 1 . . . . . . . . . Self-Inflicted Damage 970 | . . . . . . 39 . . . 38 . . . 30 . . 65 122 . 323 . 38 23 . 206 . 72 . . . . . . . . 14 . . Shots 29 | . . . . . . 2 . . . 1 . . . 1 . . 1 5 . 10 . 2 2 . 3 . 1 . . . . . . . . 1 . . Rammed 113 | . 10 6 . 4 5 . 5 . 2 . 1 2 6 3 2 . 2 . 6 . 1 . 5 1 6 4 18 2 8 . 2 3 2 2 . . 3 2 Targets Rammed 124 | . 12 6 . 4 5 . 6 . 3 . 1 2 6 3 2 . 2 . 6 . 1 . 5 1 6 6 18 2 8 . 3 4 3 3 . . 4 2 Kicked . | . . . . . . . . . . . . . . . . . . . . . . . . . . . . . . . . . . . . . . . Crushed 11 | . 2 . . . . . 1 . 1 . . . . . . . . . . . . . . . . 2 . . . . 1 1 1 1 . . 1 . Highest Temperature 531 | . 177 96 . 88 31 361 377 300 109 236 312 458 94 212 . . 254 168 185 236 238 118 . 394 509 238 364 336 351 338 238 340 531 336 112 132 213 481 Average Temperature 95 | . 56 42 . 48 11 142 72 86 26 30 91 97 68 58 . . 130 98 39 74 88 40 . 96 150 75 96 120 92 102 50 124 138 137 44 60 39 136 Received Heat Transfer 4010 | . 237 45 . 60 261 63 414 90 111 102 173 141 40 330 41 . 82 128 19 89 . 210 18 177 80 . 99 163 39 44 29 133 48 37 53 28 104 322 Effects 32 | . . . . . . 2 1 1 . . . 4 . . . . . . . . . . . . 5 . 3 3 . . . . 1 4 . . . 8 Shutdowns 8 | . . . . . . . 1 . . . . 1 . . . . . . . . . . . . . . 1 . . . . . . . . . . 5 Energy Bleed 6 | . . . . . . . . 1 . . . . . . . . . . . . . . . . . . 2 . . . . . . 1 . . . 2 Interference 14 | . . . . . . 2 . . . . . 3 . . . . . . . . . . . . 4 . . 3 . . . . 1 . . . . 1 Short Circuit 1 | . . . . . . . . . . . . . . . . . . . . . . . . . . . . . . . . . . 1 . . . . Damage (minor) 2 | . . . . . . . . . . . . . . . . . . . . . . . . . . . . . . . . . . 2 . . . . Damage (core) 1 | . . . . . . . . . . . . . . . . . . . . . . . . . 1 . . . . . . . . . . . . . Siege Activations 30 | . . . . . . . . . . . . . 1 2 1 . . 2 . 1 . 2 1 1 2 . 4 4 . . 2 1 1 . . 1 2 2 Total Turns 663 | . . . . . . . . . . . . . 38 79 12 . . 35 . 15 . 34 33 7 29 . 49 84 . . 40 20 28 . . 12 72 76 Longest Duration 62 | . . . . . . . . . . . . . 38 53 12 . . 19 . 15 . 30 33 7 25 . 19 42 . . 28 20 28 . . 12 38 62 Martial Activations . | . . . . . . . . . . . . . . . . . . . . . . . . . . . . . . . . . . . . . . . Shielding Activations . | . . . . . . . . . . . . . . . . . . . . . . . . . . . . . . . . . . . . . . . Robots Disrupted . | . . . . . . . . . . . . . . . . . . . . . . . . . . . . . . . . . . . . . . . Combat Hostiles . | . . . . . . . . . . . . . . . . . . . . . . . . . . . . . . . . . . . . . . . Robots Corrupted 25 | . . . . . . . . . . . . . . . . . . . . . . . . . 3 1 . . 1 . 4 . 1 1 1 7 4 2 Combat Hostiles 20 | . . . . . . . . . . . . . . . . . . . . . . . . . 2 1 . . . . 4 . 1 . 1 6 4 1 Parts Fried 50 | . 1 . . . . . . . . . . . . . . . . 5 . 2 . . . . 4 . 1 . 1 . 8 . 5 2 2 8 9 2 Impact Corruptions 9 | . . . . . . . 1 . . . . . . . . . . . . . . . 1 . 2 1 1 . 1 . . . . 1 . . . 1 Robots Melted 26 | . . . . . . . . . . . . . . . . . 1 4 1 1 . . . . 2 . 6 2 1 1 . 1 1 . 3 . 1 1 Combat Hostiles 20 | . . . . . . . . . . . . . . . . . 1 2 . 1 . . . . 2 . 5 2 1 . . 1 1 . 2 . 1 1 Parts Melted 126 | . . . . . 1 . 1 1 1 1 . . . 2 5 . 5 14 4 12 . 6 1 2 12 . 16 6 1 3 2 4 9 . 5 4 5 3 Heat Transferred 46428 | . 100 . . . . 650 3275 563 660 395 552 1915 777 1833 2271 . 1188 3034 890 2125 62 2150 850 1044 2447 74 3290 3071 1110 1554 518 1051 1110 74 1682 629 2704 2780 Parts Sabotaged . | . . . . . . . . . . . . . . . . . . . . . . . . . . . . . . . . . . . . . . . Parts Stolen . | . . . . . . . . . . . . . . . . . . . . . . . . . . . . . . . . . . . . . . . Parts Stripped . | . . . . . . . . . . . . . . . . . . . . . . . . . . . . . . . . . . . . . . . Power Chain Reactions 14 | . 2 . . . . . . . . . . . . . . . 1 3 . 7 . 1 . . . . . . . . . . . . . . . . Alert | -11 -10 -10 -10 -9 -8 -8 -8 -8 -7 -7 -7 -7 -7 -7 -6 -6 -6 -6 -6 -6 -6 -6 -5 -5 -4 -4 -4 -4 -4 -4 -3 -3 -3 -3 -2 -2 -1 -1 ------- Run | Yrd Mat Min Exi Min Mat Gar Mat Gar Fac Gar Fac Gar Fac Gar Fac Was Fac Gar Fac Gar Fac Gar Fac Gar Fac Gar Fac Gar Fac Gar Res Gar Res Tes Res Gar Acc Com Maximum Alert Level 4 | . . . . . . 2 1 2 1 4 2 4 2 4 3 1 . 4 3 4 2 3 2 2 1 2 2 3 2 1 1 2 2 . . 2 1 . Low Security (%) 52 | 100 100 100 . 100 100 46 42 46 95 15 51 8 78 9 . 96 100 10 76 13 . . 66 31 71 1 39 2 66 44 94 34 3 100 100 33 93 100 Level 1 22 | . . . . . . 31 57 20 4 4 26 13 3 9 . 3 . 16 12 7 . 5 28 39 28 54 59 32 32 55 5 63 71 . . 37 6 . Level 2 15 | . . . . . . 22 . 32 . 27 22 14 17 25 82 . . 27 10 32 100 55 5 29 . 44 . 54 1 . . 2 24 . . 28 . . Level 3 6 | . . . . . . . . . . 46 . 53 . 23 17 . . 11 . 44 . 38 . . . . . 11 . . . . . . . . . . Level 4 2 | . . . . . . . . . . 6 . 10 . 31 . . . 34 . 1 . . . . . . . . . . . . . . . . . . Level 5 . | . . . . . . . . . . . . . . . . . . . . . . . . . . . . . . . . . . . . . . . High Security . | . . . . . . . . . . . . . . . . . . . . . . . . . . . . . . . . . . . . . . . Max Security . | . . . . . . . . . . . . . . . . . . . . . . . . . . . . . . . . . . . . . . . Peak Influence 1430 | . 187 81 . 81 78 505 295 535 216 1169 613 1118 581 1430 750 208 122 1363 704 1130 609 813 426 533 288 598 426 781 409 398 223 455 461 174 134 531 318 187 Initial 750 | . . 68 . . . 1 245 38 196 10 613 114 581 56 750 208 . 62 704 88 592 341 426 86 187 165 313 183 409 93 223 33 255 174 . 64 318 32 Average 275 | . 38 17 . 6 15 262 180 265 57 660 255 700 179 780 618 75 57 740 206 682 532 643 185 305 108 368 199 508 133 224 86 225 330 27 26 282 49 66 Influence Increases 24104 | . 550 138 . 81 485 594 810 806 362 1209 706 1205 256 1644 479 . 273 1391 429 1222 394 662 396 942 775 433 1530 948 696 595 318 652 701 67 466 677 706 506 Destroy 0b10 Robot/C 11510 | . 340 100 . 60 300 380 520 380 200 680 340 620 180 760 300 . 180 640 200 650 150 300 210 435 315 . 705 495 195 225 180 195 300 15 165 270 345 180 Destroy 0b10 Robot/NC 494 | . 20 . . . 45 . 50 . 15 30 30 . 15 10 30 . 5 . 20 . 12 . 12 . 28 . 48 . 12 4 . . 8 4 36 4 4 52 Destroy Leader 1750 | . 74 20 . 10 72 20 168 30 62 40 86 20 40 80 50 . 40 20 62 74 26 64 32 32 84 . 112 32 48 16 48 32 58 2 42 40 72 42 Allied During Kill 2037 | . . . . 11 28 22 . 7 1 28 89 61 19 127 54 . 11 24 28 188 166 58 28 110 24 . 210 49 51 36 14 112 293 4 33 30 69 52 Successful Hack 580 | . . 7 . . 25 38 46 32 33 24 5 . . 44 10 . . 30 71 . 9 22 4 11 12 17 31 11 30 17 20 . . . . 28 . 3 Select Force Hacks 182 | . 60 . . . . . . . . . 30 . . . . . . . . . . . . . . . . . 69 . . . . . 23 . . . Disable Machine 1002 | . 15 . . . 15 15 . 30 30 30 90 . . 15 . . 30 15 30 15 24 . 36 36 216 . 156 . 60 . 24 12 . 24 . 12 48 24 Anti-Garrison Action 3967 | . . . . . . 50 . 250 . 250 . 300 . 450 . . . 450 . 213 . 190 . 190 . 414 . 227 113 265 . 265 . . 113 227 . . Destroy Structure 1706 | . 11 11 . . . 69 11 47 21 127 21 54 2 68 5 . 7 122 18 28 7 16 38 44 84 2 232 62 106 20 20 36 42 6 42 54 120 153 Partial Spotted 27 | . . . . . . . . . . . 15 . . . . . . . . . . . . . . . 12 . . . . . . . . . . . Lose Combat Pursuer 849 | . 30 . . . . . 15 30 . . . 150 . 90 30 . . 90 . 54 . 12 36 84 12 . 24 72 12 12 12 . . 12 12 12 48 . Influence Decreases 24104 | . 374 314 . 81 483 91 1256 491 721 55 1711 260 1285 294 1312 597 184 137 1646 218 1036 337 1085 708 896 72 1866 429 1344 330 672 241 846 377 380 232 1187 556 Entered New Map 6408 | . . 108 . . . 1 260 21 178 5 556 50 528 24 680 389 . 27 639 38 538 147 387 38 171 72 285 79 372 40 175 11 200 136 . 22 213 18 Time Decay 8566 | . 364 206 . 81 389 . 714 . 212 . 495 . 422 . 422 208 174 . 542 . 318 . 458 . 503 . 592 . 564 . 390 . 386 215 155 . 428 328 Lost Part 595 | . 10 . . . . 10 15 . 10 20 . . . 30 30 . . 30 10 . . 30 10 10 20 . 40 30 8 10 14 30 50 . 10 30 40 98 Lost Ally 4809 | . . . . . 83 80 . 20 21 30 135 210 60 240 180 . 10 80 80 180 180 160 80 210 202 . 424 320 250 280 93 200 210 26 215 180 258 112 Purge Threat 3726 | . . . . . 11 . 267 450 300 . 525 . 275 . . . . . 375 . . . 150 450 . . 525 . 150 . . . . . . . 248 . Squads Dispatched 117 | . 6 . . . . . 3 . 4 . 14 . 3 . 5 . 3 . 5 . 3 . 2 . 8 . 16 . 14 . 4 . 6 3 6 . 10 2 Investigation 18 | . 5 . . . . . 2 . 1 . 2 . 1 . . . 1 . . . . . . . 1 . . . 4 . . . . . 1 . . . Extermination 38 | . . . . . . . . . 3 . 3 . 1 . 1 . 1 . 2 . 1 . 2 . 3 . 5 . 3 . 2 . 2 2 1 . 4 2 Reinforcement 31 | . 1 . . . . . . . . . . . 1 . 3 . 1 . . . . . . . 3 . 7 . 4 . 2 . 2 1 1 . 5 . Assault 15 | . . . . . . . . . . . 2 . . . 1 . . . . . 2 . . . . . 4 . 2 . . . 2 . 2 . . . Garrison 15 | . . . . . . . 1 . . . 7 . . . . . . . 3 . . . . . 1 . . . 1 . . . . . 1 . 1 . Intercept . | . . . . . . . . . . . . . . . . . . . . . . . . . . . . . . . . . . . . . . . Searches Triggered . | . . . . . . . . . . . . . . . . . . . . . . . . . . . . . . . . . . . . . . . Unchained Authorized 4 | . . . . . . . . . . . . . . . . . . . . . 1 . . . . . . . . . . . . 1 1 . 1 . Construction Impeded 2 | . . . . . . . . . . . . . . . . . . . . . . . . . 1 . . . . . . . 1 . . . . . Haulers Reinforced 5 | . . . . . . . . . . . . . 1 . . . . . . . . . . . 1 . 1 . 1 . . . 1 . . . . . Active Scanning Responses . | . . . . . . . . . . . . . . . . . . . . . . . . . . . . . . . . . . . . . . . Cargo Convoy Interrupts 3 | . . . . . . . . . . . . . . . 1 . . . . . . . . . . . . . . . 1 . 1 . . . . . Alert ID Control Effect 138 | . . . . . . . . . . . . . . . . . . . . . . . . . . . . 1 33 11 3 12 19 13 20 4 16 6 Stealth | -11 -10 -10 -10 -9 -8 -8 -8 -8 -7 -7 -7 -7 -7 -7 -6 -6 -6 -6 -6 -6 -6 -6 -5 -5 -4 -4 -4 -4 -4 -4 -3 -3 -3 -3 -2 -2 -1 -1 --------- Run | Yrd Mat Min Exi Min Mat Gar Mat Gar Fac Gar Fac Gar Fac Gar Fac Was Fac Gar Fac Gar Fac Gar Fac Gar Fac Gar Fac Gar Fac Gar Res Gar Res Tes Res Gar Acc Com Distress Signals 48 | . . . . . 6 . 5 . 2 . 2 1 . . . . . . . . 3 . . . 1 . 3 . 7 . . . 4 1 3 . 7 3 Communications Jammed 382 | . . . . . . . . . . . . . . . . . . . . . . . . . . . 138 . . . 11 . 39 1 2 7 184 . Distress Signals 380 | . . . . . . . . . . . . . . . . . . . . . . . . . . . 138 . . . 11 . 39 . 1 7 184 . Times Spotted 1211 | . 23 3 . 3 27 15 46 14 14 31 22 34 15 47 32 . 13 42 17 48 9 33 30 40 34 . 73 64 87 49 27 33 48 25 52 30 89 42 Peak Tracking Total 16 | . 5 2 . 3 5 4 4 6 3 7 4 9 4 8 15 . 4 6 3 9 5 7 5 8 5 . 5 8 9 16 7 3 10 3 7 4 8 6 Tactical Retreats 49 | . 2 . . . . . 1 1 . . . 4 . 4 2 . . 3 . 3 . 1 1 5 1 . 2 5 1 1 1 . . 1 1 1 8 . Traps | -11 -10 -10 -10 -9 -8 -8 -8 -8 -7 -7 -7 -7 -7 -7 -6 -6 -6 -6 -6 -6 -6 -6 -5 -5 -4 -4 -4 -4 -4 -4 -3 -3 -3 -3 -2 -2 -1 -1 ------- Run | Yrd Mat Min Exi Min Mat Gar Mat Gar Fac Gar Fac Gar Fac Gar Fac Was Fac Gar Fac Gar Fac Gar Fac Gar Fac Gar Fac Gar Fac Gar Res Gar Res Tes Res Gar Acc Com Traps Triggered 50 | . 4 . . . . . 1 4 . . . 1 . 2 1 . . 3 . 7 . 3 1 1 2 . 1 1 . 3 . 3 . 4 . 4 3 1 Indirectly 5 | . . . . . . . . . . . . . . . . . . 2 . 2 . . . . . . . . . . . . . . . 1 . . Trap Hack Attempts . | . . . . . . . . . . . . . . . . . . . . . . . . . . . . . . . . . . . . . . . Triggered . | . . . . . . . . . . . . . . . . . . . . . . . . . . . . . . . . . . . . . . . Disarmed . | . . . . . . . . . . . . . . . . . . . . . . . . . . . . . . . . . . . . . . . Reprogrammed . | . . . . . . . . . . . . . . . . . . . . . . . . . . . . . . . . . . . . . . . Reused . | . . . . . . . . . . . . . . . . . . . . . . . . . . . . . . . . . . . . . . . Traps Extracted . | . . . . . . . . . . . . . . . . . . . . . . . . . . . . . . . . . . . . . . . Installed . | . . . . . . . . . . . . . . . . . . . . . . . . . . . . . . . . . . . . . . . Triggered . | . . . . . . . . . . . . . . . . . . . . . . . . . . . . . . . . . . . . . . . Machines | -11 -10 -10 -10 -9 -8 -8 -8 -8 -7 -7 -7 -7 -7 -7 -6 -6 -6 -6 -6 -6 -6 -6 -5 -5 -4 -4 -4 -4 -4 -4 -3 -3 -3 -3 -2 -2 -1 -1 ---------- Run | Yrd Mat Min Exi Min Mat Gar Mat Gar Fac Gar Fac Gar Fac Gar Fac Was Fac Gar Fac Gar Fac Gar Fac Gar Fac Gar Fac Gar Fac Gar Res Gar Res Tes Res Gar Acc Com Machines Disabled 144 | . 2 . . . 1 2 . 5 2 6 6 5 . 7 . . 2 7 2 5 2 5 3 7 18 3 15 4 9 4 2 6 . 2 1 5 4 2 Max in Single Turn 3 | . 1 . . . 1 1 . 1 1 2 . 2 . 1 . . 2 1 . 1 1 1 2 1 2 1 3 1 1 1 1 1 . 1 . 1 1 1 Garrison Access 10 | . . . . . . . . . . . 1 . . . . . . . . . 1 . . . . . 2 . 1 . . . 1 . 1 . 3 . Garrison Relay 51 | . . . . . . 1 . 3 . 3 . 3 . 6 . . . 5 . 3 . 4 . 3 . 3 . 4 . 4 . 5 . . . 4 . . Phase Generator 1 | . . . . . . . . . . . . 1 . . . . . . . . . . . . . . . . . . . . . . . . . . Machines Repaired . | . . . . . . . . . . . . . . . . . . . . . . . . . . . . . . . . . . . . . . . Machines Dismantled . | . . . . . . . . . . . . . . . . . . . . . . . . . . . . . . . . . . . . . . . Machines Sabotaged . | . . . . . . . . . . . . . . . . . . . . . . . . . . . . . . . . . . . . . . . Overloaded Fab Kills . | . . . . . . . . . . . . . . . . . . . . . . . . . . . . . . . . . . . . . . . Hacking | -11 -10 -10 -10 -9 -8 -8 -8 -8 -7 -7 -7 -7 -7 -7 -6 -6 -6 -6 -6 -6 -6 -6 -5 -5 -4 -4 -4 -4 -4 -4 -3 -3 -3 -3 -2 -2 -1 -1 --------- Run | Yrd Mat Min Exi Min Mat Gar Mat Gar Fac Gar Fac Gar Fac Gar Fac Was Fac Gar Fac Gar Fac Gar Fac Gar Fac Gar Fac Gar Fac Gar Res Gar Res Tes Res Gar Acc Com Machines Accessed 147 | . 8 1 2 1 11 1 10 2 5 2 7 1 6 4 4 . 1 3 8 1 4 3 4 3 5 2 7 2 8 3 5 4 4 5 1 3 4 2 Terminals 85 | . 6 1 . . 7 1 7 2 2 2 2 1 3 4 . . . 3 4 1 . 3 1 3 2 2 3 2 2 3 3 4 2 3 . 3 1 2 Fabricators 12 | . . . . . . . . . . . 2 . 1 . 1 . . . . . . . 1 . 1 . 2 . 2 . 1 . . 1 . . . . Repair Stations 10 | . . . . . 1 . 1 . 1 . . . 1 . 1 . . . 2 . . . 1 . . . 1 . 1 . . . . . . . . . Recycling Units 2 | . 2 . . . . . . . . . . . . . . . . . . . . . . . . . . . . . . . . . . . . . Scanalyzers 12 | . . . . . 2 . 1 . 1 . 1 . . . 2 . . . 1 . 2 . . . . . . . . . . . 1 1 . . . . Garrison Access 23 | . . . . . 1 . 1 . 1 . 2 . 1 . . . 1 . 1 . 2 . 1 . 2 . 1 . 3 . 1 . 1 . 1 . 3 . Total Hacks 326 | . 14 2 3 1 29 5 31 4 15 3 16 2 17 7 14 . 3 5 17 1 8 7 12 7 12 3 15 2 16 7 9 8 6 8 3 4 8 2 Successful 180 | . 5 1 3 1 18 3 19 2 10 2 12 . 10 3 6 . 2 3 10 1 5 2 8 1 6 2 8 1 11 2 5 2 2 1 3 3 6 1 Failed 145 | . 9 1 . . 10 2 12 2 5 1 4 2 7 4 8 . 1 2 7 . 3 5 4 6 6 1 7 1 5 5 4 6 4 7 . 1 2 1 Catastrophic 40 | . 3 . . . . . 4 . 1 . 2 1 2 1 1 . . . 3 . . 1 2 . 2 . 4 . 1 1 2 3 3 1 . . 1 1 Database Lockouts 1 | . . . . . 1 . . . . . . . . . . . . . . . . . . . . . . . . . . . . . . . . . Manual 103 | . 12 2 1 . 12 4 17 1 5 . 5 . 7 1 . . 1 1 2 . . . 5 . 6 . 7 . 6 . . . 2 4 1 . . 1 Terminals 174 | . 12 2 . . 21 5 19 4 4 3 4 2 5 7 . . . 5 7 1 . 7 3 7 6 3 5 2 2 7 6 8 3 6 . 4 2 2 Fabricators 28 | . . . . . . . . . . . 5 . 3 . 4 . . . . . . . 4 . 1 . 6 . 3 . 1 . . 1 . . . . Repair Stations 35 | . . . . . 1 . 4 . 4 . . . 7 . 4 . . . 7 . . . 2 . . . 3 . 3 . . . . . . . . . Recycling Units 2 | . 2 . . . . . . . . . . . . . . . . . . . . . . . . . . . . . . . . . . . . . Scanalyzers 31 | . . . . . 6 . 7 . 3 . 2 . . . 6 . . . 1 . 4 . . . . . . . . . . . 1 1 . . . . Garrison Access 52 | . . . . . 1 . 1 . 4 . 5 . 2 . . . 3 . 2 . 4 . 3 . 5 . 1 . 8 . 2 . 2 . 3 . 6 . Terminal Hacks 58 | . 2 1 3 1 5 2 4 2 2 2 1 . . 3 . . . 3 3 1 . 2 1 1 2 2 3 1 1 2 2 2 . . . 3 . 1 Record 2 | . . . 2 . . . . . . . . . . . . . . . . . . . . . . . . . . . . . . . . . . . Part Schematic 1 | . . 1 . . . . . . . . . . . . . . . . . . . . . . . . . . . . . . . . . . . . Robot Schematic 2 | . 1 . . . . . 1 . . . . . . . . . . . . . . . . . . . . . . . . . . . . . . . Prototype ID Bank 3 | . 1 . . . 1 . . . . . . . . . . . . . . . . . . . . . . . 1 . . . . . . . . . Open Door 7 | . . . . 1 . . . . . . . . . . . . . 1 . . . . . . . 1 . . . 1 . 1 . . . 1 . 1 Branch Access Points 1 | . . . . . . . . . . . . . . . . . . . . . . . . . . . . . . . 1 . . . . . . . Emergency Access Points 8 | . . . . . . 1 . . . . . . . 1 . . . 1 . 1 . 1 . . . 1 . . . 1 . . . . . 1 . . Machine Index 1 | . . . . . . . . . . . . . . . . . . . 1 . . . . . . . . . . . . . . . . . . . Terminal Index 3 | . . . . . . . 1 . 1 . . . . . . . . . . . . . . . . . . . . . 1 . . . . . . . Fabricator Index 1 | . . . . . . . . . . . . . . . . . . . . . . . . . 1 . . . . . . . . . . . . . Garrison Index 1 | . . . . . . . . . . . . . . . . . . . 1 . . . . . . . . . . . . . . . . . . . Alert Level 1 | . . . . . . . 1 . . . . . . . . . . . . . . . . . . . . . . . . . . . . . . . Unreport Threat 6 | . . . . . 2 . . . 1 . 1 . . . . . . . . . . . 1 . . . 1 . . . . . . . . . . . Locate Traps 1 | . . . . . . . . . . . . . . . . . . . . . . . . . . . 1 . . . . . . . . . . . Recall Investigation 1 | . . . . . . . 1 . . . . . . . . . . . . . . . . . . . . . . . . . . . . . . . Hauler Manifests 1 | . . . . . 1 . . . . . . . . . . . . . . . . . . . . . . . . . . . . . . . . . Zone Layout 4 | . . . . . 1 . . . . . . . . . . . . . 1 . . . . . 1 . 1 . . . . . . . . . . . Garrison Registry 8 | . . . . . . 1 . 1 . 1 . . . 1 . . . . . . . . . 1 . . . 1 . . . 1 . . . 1 . . Patrol Navigation 3 | . . . . . . . . . . 1 . . . . . . . 1 . . . 1 . . . . . . . . . . . . . . . . Security Stations 2 | . . . . . . . . 1 . . . . . 1 . . . . . . . . . . . . . . . . . . . . . . . . Proto ID Catalog 1 | . . . 1 . . . . . . . . . . . . . . . . . . . . . . . . . . . . . . . . . . . Fabricator Hacks 11 | . . . . . . . . . . . 3 . 1 . 1 . . . . . . . 3 . . . 2 . . . 1 . . . . . . . Network Status 4 | . . . . . . . . . . . 1 . . . . . . . . . . . . . . . 2 . . . 1 . . . . . . . Load Schematic 3 | . . . . . . . . . . . 1 . 1 . . . . . . . . . 1 . . . . . . . . . . . . . . . Build 4 | . . . . . . . . . . . 1 . . . 1 . . . . . . . 2 . . . . . . . . . . . . . . . Repair Station Hacks 18 | . . . . . . . 4 . 2 . . . 6 . 2 . . . 3 . . . 1 . . . . . . . . . . . . . . . Scan Component 10 | . . . . . . . 2 . 1 . . . 3 . 1 . . . 2 . . . 1 . . . . . . . . . . . . . . . Repair 8 | . . . . . . . 2 . 1 . . . 3 . 1 . . . 1 . . . . . . . . . . . . . . . . . . . Recycling Unit Hacks . | . . . . . . . . . . . . . . . . . . . . . . . . . . . . . . . . . . . . . . . Scanalyzer 19 | . . . . . 5 . 6 . 3 . 1 . . . 3 . . . . . 1 . . . . . . . . . . . . . . . . . Insert Component 1 | . . . . . . . 1 . . . . . . . . . . . . . . . . . . . . . . . . . . . . . . . Analyze 1 | . . . . . . . 1 . . . . . . . . . . . . . . . . . . . . . . . . . . . . . . . Retrieve Study 17 | . . . . . 5 . 4 . 3 . 1 . . . 3 . . . . . 1 . . . . . . . . . . . . . . . . . Garrison Access Hacks 41 | . . . . . 1 . 1 . 2 . 4 . 2 . . . 2 . 2 . 4 . 2 . 3 . 1 . 5 . 2 . 2 . 2 . 6 . Unlock Access 17 | . . . . . 1 . 1 . 1 . 2 . 1 . . . 1 . 1 . 1 . 1 . 2 . 1 . 2 . 1 . . . 1 . . . Seal Access 5 | . . . . . . . . . . . . . . . . . . . . . 1 . . . . . . . . . . . 1 . . . 3 . Coupler Status 19 | . . . . . . . . . 1 . 2 . 1 . . . 1 . 1 . 2 . 1 . 1 . . . 3 . 1 . 1 . 1 . 3 . Unauthorized Hacks 33 | . 3 . . . 7 1 4 . 1 . 3 . 1 . . . . . 2 . . . 1 . 1 . 2 . 5 . . . . 1 1 . . . Terminals 19 | . 1 . . . 7 1 4 . 1 . . . . . . . . . 1 . . . 1 . 1 . . . 1 . . . . 1 . . . . Track 1 | . . . . . . . . . . . . . . . . . . . . . . . . . . . . . . . . . . 1 . . . . Assimilate 6 | . . . . . 2 . 3 . . . . . . . . . . . . . . . . . . . . . 1 . . . . . . . . . Botnet 1 | . . . . . . 1 . . . . . . . . . . . . . . . . . . . . . . . . . . . . . . . . Operators 4 | . . . . . . . . . 1 . . . . . . . . . 1 . . . 1 . 1 . . . . . . . . . . . . . Skim 7 | . 1 . . . 5 . 1 . . . . . . . . . . . . . . . . . . . . . . . . . . . . . . . Fabricators 4 | . . . . . . . . . . . 2 . 1 . . . . . . . . . . . . . 1 . . . . . . . . . . . Liberate 1 | . . . . . . . . . . . 1 . . . . . . . . . . . . . . . . . . . . . . . . . . . Haulers 2 | . . . . . . . . . . . 1 . . . . . . . . . . . . . . . 1 . . . . . . . . . . . Recompile 1 | . . . . . . . . . . . . . 1 . . . . . . . . . . . . . . . . . . . . . . . . . Repair Stations 3 | . . . . . . . . . . . . . . . . . . . 1 . . . . . . . 1 . 1 . . . . . . . . . Mechanics 3 | . . . . . . . . . . . . . . . . . . . 1 . . . . . . . 1 . 1 . . . . . . . . . Recycling Units 2 | . 2 . . . . . . . . . . . . . . . . . . . . . . . . . . . . . . . . . . . . . Tunnel 2 | . 2 . . . . . . . . . . . . . . . . . . . . . . . . . . . . . . . . . . . . . Scanalyzers . | . . . . . . . . . . . . . . . . . . . . . . . . . . . . . . . . . . . . . . . Garrison Access 5 | . . . . . . . . . . . 1 . . . . . . . . . . . . . . . . . 3 . . . . . 1 . . . Eject 5 | . . . . . . . . . . . 1 . . . . . . . . . . . . . . . . . 3 . . . . . 1 . . . Data Cores Recovered 2 | . . . . . . . . . . . . . . . . . . . 1 . . . . . . . 1 . . . . . . . . . . . Used 1 | . . . . . . . . . . . . . . . . . . . 1 . . . . . . . . . . . . . . . . . . . Hacking Detections 119 | . 6 1 . . 9 1 8 2 5 1 6 1 4 3 2 . 1 3 7 1 3 2 4 3 5 1 7 1 6 2 4 3 4 5 1 2 4 1 Full Trace Events 13 | . 2 . . . . . 1 . 1 . 1 . . 1 . . 1 . . . . 1 . 2 1 . . . 1 1 . . . . . . . . Feedback Events . | . . . . . . . . . . . . . . . . . . . . . . . . . . . . . . . . . . . . . . . Feedback Blocked . | . . . . . . . . . . . . . . . . . . . . . . . . . . . . . . . . . . . . . . . Robot Schematics Acquired 6 | . 1 . . . . . 1 . . . . . . . . . . . . . . . . . . . . . . . . . . 4 . . . . Robots Built 6 | . . . . . . . . . . . 1 . . . 4 . . . . . . . 1 . . . . . . . . . . . . . . . Authchips 1 | . . . . . . . . . . . . . . . . . . . . . . . 1 . . . . . . . . . . . . . . . Time 313 | . . . . . . . . . . . 116 . . . 81 . . . . . . . 116 . . . . . . . . . . . . . . . Total Robot Build Rating 10 | . . . . . . . . . . . 3 . . . 4 . . . . . . . 3 . . . . . . . . . . . . . . . Part Schematics Acquired 9 | . . 1 . . . . 1 . . . . . . . . . . . . . . . . . . . . . . . . . . 7 . . . . Parts Built 2 | . . . . . . . . . . . . . . . . . . . . . . . 2 . . . . . . . . . . . . . . . Authchips . | . . . . . . . . . . . . . . . . . . . . . . . . . . . . . . . . . . . . . . . Time 139 | . . . . . . . . . . . . . . . . . . . . . . . 139 . . . . . . . . . . . . . . . Total Part Build Rating 18 | . . . . . . . . . . . . . . . . . . . . . . . 18 . . . . . . . . . . . . . . . Part Studies Acquired 11 | . . . . . 3 . 2 . 3 . . . . . 2 . . . . . 1 . . . . . . . . . . . . . . . . . Parts Repaired 8 | . . . . . . . 2 . 1 . . . 3 . 1 . . . 1 . . . . . . . . . . . . . . . . . . . Time 440 | . . . . . . . 76 . 108 . . . 144 . 62 . . . 50 . . . . . . . . . . . . . . . . . . . Parts Recycled . | . . . . . . . . . . . . . . . . . . . . . . . . . . . . . . . . . . . . . . . Recycled Matter . | . . . . . . . . . . . . . . . . . . . . . . . . . . . . . . . . . . . . . . . Retrieved Matter . | . . . . . . . . . . . . . . . . . . . . . . . . . . . . . . . . . . . . . . . Retrieved Components . | . . . . . . . . . . . . . . . . . . . . . . . . . . . . . . . . . . . . . . . Parts Scanalyzed 1 | . . . . . . . 1 . . . . . . . . . . . . . . . . . . . . . . . . . . . . . . . Part Schematics Acquired 1 | . . . . . . . 1 . . . . . . . . . . . . . . . . . . . . . . . . . . . . . . . Parts Damaged . | . . . . . . . . . . . . . . . . . . . . . . . . . . . . . . . . . . . . . . . Bothacking | -11 -10 -10 -10 -9 -8 -8 -8 -8 -7 -7 -7 -7 -7 -7 -6 -6 -6 -6 -6 -6 -6 -6 -5 -5 -4 -4 -4 -4 -4 -4 -3 -3 -3 -3 -2 -2 -1 -1 ------------ Run | Yrd Mat Min Exi Min Mat Gar Mat Gar Fac Gar Fac Gar Fac Gar Fac Was Fac Gar Fac Gar Fac Gar Fac Gar Fac Gar Fac Gar Fac Gar Res Gar Res Tes Res Gar Acc Com Used RIF Installer 16 | . . . . . . 1 . 1 . 1 . 1 . 1 . . . 1 . 1 . 2 . 1 . 1 . 1 . 2 . 1 . . . 1 . . Coupler Efficiency 1 | . . . . . . . . . . . . . . . . . . . . . . . . . . . . . . . . . . . . 1 . . Hotswap 1 | . . . . . . . . . . . . . . . . . . . . . . . . . . . . . . 1 . . . . . . . . Code Merge 1 | . . . . . . . . . . . . . . 1 . . . . . . . . . . . . . . . . . . . . . . . . Command Fork 2 | . . . . . . . . 1 . . . . . . . . . . . . . . . . . . . . . . . 1 . . . . . . Threat Obfuscator 1 | . . . . . . . . . . . . . . . . . . . . 1 . . . . . . . . . . . . . . . . . . Zone Cloak 1 | . . . . . . . . . . . . . . . . . . . . . . . . . . 1 . . . . . . . . . . . . Watcher Feeds 1 | . . . . . . . . . . . . 1 . . . . . . . . . . . . . . . . . . . . . . . . . . Alert ID Control 1 | . . . . . . . . . . . . . . . . . . . . . . . . . . . . 1 . . . . . . . . . . Structural Interface 1 | . . . . . . . . . . . . . . . . . . 1 . . . . . . . . . . . . . . . . . . . . Program Shield 1 | . . . . . . . . . . . . . . . . . . . . . . . . 1 . . . . . . . . . . . . . . Autooverride 3 | . . . . . . . . . . 1 . . . . . . . . . . . 1 . . . . . . . 1 . . . . . . . . Crosswire 1 | . . . . . . . . . . . . . . . . . . . . . . 1 . . . . . . . . . . . . . . . . Robots Hacked 394 | . . . . . . . 1 3 2 4 10 5 10 10 11 . 3 8 7 12 1 14 9 11 16 . 30 28 31 24 7 15 17 26 27 10 33 9 Non-combat 69 | . . . . . . . 1 . 2 . 2 . 5 . 7 . 1 . 4 . 1 . . 1 5 . 5 . 7 . 2 . 3 5 3 . 12 3 Combat 325 | . . . . . . . . 3 . 4 8 5 5 10 4 . 2 8 3 12 . 14 9 10 11 . 25 28 24 24 5 15 14 21 24 10 21 6 Autooverrided 122 | . . . . . . . . . . . . . 1 4 . . . 3 1 2 . 6 2 4 6 . 10 10 6 9 4 6 9 3 16 8 7 5 Robot Hacks Applied 324 | . . . . . . . 3 7 3 4 13 5 14 7 13 . 4 5 9 12 1 9 9 12 11 . 27 19 26 15 3 9 8 23 16 3 28 6 parse_system 19 | . . . . . . . . 1 . . . 1 1 . . . . . . 5 . . 1 1 . . . 1 1 . . 1 1 3 1 . . 1 find_chute 1 | . . . . . . . . . . . . . . . 1 . . . . . . . . . . . . . . . . . . . . . . . ignore_repairs 2 | . . . . . . . . . . . . . . . . . . . . . . . . . 1 . . . . . . . . . . . 1 . drop_inventory 25 | . . . . . . . . . . . . . 3 . 1 . . . 1 . 1 . . . 2 . 4 . 4 . . . 2 2 1 . 4 . purge_threat 25 | . . . . . . . 2 4 1 . 3 . 2 . . . . . 3 . . . . 4 . . 3 . 1 . . . . . . . 2 . block_reporting 6 | . . . . . . . . . . . . . 1 . . . . . 2 . . . . . . . . . . . 1 . . . 1 . . 1 map_route 4 | . . . . . . . . . . . . . . . . . . . . . . . . . 1 . . . . . . . . . . . 3 . redirect_shields 3 | . . . . . . . . . . . . . . . 3 . . . . . . . . . . . . . . . . . . . . . . . disable_scanner 10 | . . . . . . . . . . . . . . . . . . . . . . . . . . . . . . . . . . 10 . . . . find_garrison 6 | . . . . . . . . . . . . . . . . . 1 . . . . . . . . . 2 . 2 . . . . . 1 . . . focus_fire 1 | . . . . . . . . . . 1 . . . . . . . . . . . . . . . . . . . . . . . . . . . . tweak_propulsion 2 | . . . . . . . . . . . . . . . 1 . . . . . . . . . . . . 1 . . . . . . . . . . mark_system 1 | . . . . . . . . . . . . . . . . . . . . . . . . . . . . . . . . . . . 1 . . . overload_power 4 | . . . . . . . . . . . . . . . . . 1 . . 1 . . 1 1 . . . . . . . . . . . . . . amplify_resonance 39 | . . . . . . . . . . . . . 1 2 . . . . 1 2 . 5 1 . 1 . 3 2 8 5 1 3 . 1 1 . 2 . disable_weapons 1 | . . . . . . . . . . 1 . . . . . . . . . . . . . . . . . . . . . . . . . . . . overwrite_iff 62 | . . . . . . . . 2 . 1 1 1 . 3 1 . . 4 . 2 . 3 3 2 2 . 7 9 5 5 . 3 2 1 2 . 3 . formatsys_low 24 | . . . . . . . 1 . 2 . 2 . 3 . 2 . 1 . 1 . . . . 1 1 . . . 1 . 1 . 1 1 2 . 3 1 formatsys_high 89 | . . . . . . . . . . 1 7 3 3 2 4 . 1 1 1 2 . 1 3 3 3 . 8 6 4 5 . 2 2 5 6 3 10 3 Relay Couplers Released 241 | . . . . . . 4 . 12 . 11 4 11 . 22 . . . 24 . 11 . 16 . 13 3 13 9 17 8 16 . 19 4 . 5 15 4 . Ejected 15 | . . . . . . . . . . . 4 . . . . . . . . . . . . . . . . . 8 . . . . . 3 . . . Machine Destruction 208 | . . . . . . 4 . 12 . 11 . 11 . 22 . . . 20 . 11 . 16 . 13 . 13 2 17 . 16 . 19 . . 2 15 4 . Programmers 18 | . . . . . . . . . . . . . . . . . . 4 . . . . . . 3 . 7 . . . . . 4 . . . . . Attached 91 | . . . . . . . 1 2 1 2 6 2 4 4 3 . 1 5 2 5 . 3 2 3 2 1 4 6 4 7 . 3 1 1 5 4 5 2 Crosswired 59 | . . . . . . . . . . . . . . . . . . . . . . 4 . 3 1 8 3 8 3 10 . 6 2 . 1 9 1 . Merged Code Value 491 | . . . . . . . . . . . . . . . . . . . . . . 22 . 52 . 79 16 110 20 64 . 34 30 . . 52 12 . Fabnet Peak Effective % . | . . . . . . . . . . . . . . . . . . . . . . . . . . . . . . . . . . . . . . . Robots Rewired 47 | . . . . . . . . 2 . . . 4 . 6 . . . 3 . 18 . . . 2 . 5 . . . . . 6 . . . 1 . . Allies Hacked 12 | . . . . . . . . . . . 1 1 . 2 1 . . . . 2 . . . 1 . . 1 . . . 1 . . . 1 . 1 . Hacks Repelled . | . . . . . . . . . . . . . . . . . . . . . . . . . . . . . . . . . . . . . . . Allies | -11 -10 -10 -10 -9 -8 -8 -8 -8 -7 -7 -7 -7 -7 -7 -6 -6 -6 -6 -6 -6 -6 -6 -5 -5 -4 -4 -4 -4 -4 -4 -3 -3 -3 -3 -2 -2 -1 -1 -------- Run | Yrd Mat Min Exi Min Mat Gar Mat Gar Fac Gar Fac Gar Fac Gar Fac Was Fac Gar Fac Gar Fac Gar Fac Gar Fac Gar Fac Gar Fac Gar Res Gar Res Tes Res Gar Acc Com Total Allies 421 | . . 6 . . 6 . 2 4 2 3 14 10 8 18 13 1 3 16 3 25 . 10 12 15 13 7 26 28 20 22 5 21 16 14 26 14 28 10 Largest Group 18 | . . 6 6 3 4 2 2 3 3 4 6 4 4 6 10 2 3 8 5 18 15 5 4 5 3 9 10 5 9 5 4 10 13 9 8 6 7 6 Highest-Rated Group 755 | . . 113 113 40 50 20 20 72 71 113 186 119 104 188 265 43 64 282 188 662 633 212 132 319 143 389 438 304 481 234 177 581 755 434 529 354 502 446 Highest-Rated Ally 215 | . . 31 31 16 29 10 10 31 31 32 32 62 32 62 113 29 32 62 51 119 119 119 49 95 49 80 76 95 95 116 49 99 99 64 183 85 183 215 Total Orders 79 | . . . . . 6 5 4 2 . 9 1 1 1 . 2 1 . 6 3 . . . 1 1 1 1 1 . 1 2 . . 3 1 1 4 19 2 STAY 20 | . . . . . 2 3 3 1 . 4 . . . . . . . 3 1 . . . . . . . . . . 1 . . 1 . . . . 1 ROAM 3 | . . . . . 1 . . . . . . . . . . . . . . . . . . . . . . . . . . . . . . 2 . . FOLLOW 17 | . . . . . 2 2 1 1 . 3 . . . . . . . 3 1 . . . . . . . . . . 1 . . 1 . . 2 . . AID 21 | . . . . . . . . . . 2 1 1 1 . 2 1 . . 1 . . . 1 1 1 1 1 . 1 . . . 1 1 1 . 2 1 EXPLORE 14 | . . . . . . . . . . . . . . . . . . . . . . . . . . . . . . . . . . . . . 14 . RETURN 4 | . . . . . 1 . . . . . . . . . . . . . . . . . . . . . . . . . . . . . . . 3 . Ally Attacks 1945 | . . . . 11 56 6 . 9 14 25 60 57 24 71 35 . 11 35 38 71 66 27 44 96 43 . 136 70 182 53 30 105 184 60 103 67 105 51 Total Damage 59815 | . . . . 148 443 23 . 163 231 745 1631 1484 640 1906 924 . 295 788 793 1930 2510 465 637 2828 1347 . 4455 1410 6384 1335 865 3133 6609 1869 3678 2489 3792 3865 Kills 394 | . . . . 3 7 4 . 1 1 9 13 14 6 20 6 . 3 4 8 11 16 5 11 23 6 . 34 12 38 13 4 18 33 13 20 10 18 10 Allies Corrupted 32 | . . . . . . 1 . . . . . . . 1 . . . . . . . 1 . 1 1 . 5 . . . . 2 4 4 2 2 6 2 Allies Melted 8 | . . . . . . . . . . . . . . . . . . 4 . . . . . 1 . . . . . . . . 1 . 1 . 1 . Intel | -11 -10 -10 -10 -9 -8 -8 -8 -8 -7 -7 -7 -7 -7 -7 -6 -6 -6 -6 -6 -6 -6 -6 -5 -5 -4 -4 -4 -4 -4 -4 -3 -3 -3 -3 -2 -2 -1 -1 ------- Run | Yrd Mat Min Exi Min Mat Gar Mat Gar Fac Gar Fac Gar Fac Gar Fac Was Fac Gar Fac Gar Fac Gar Fac Gar Fac Gar Fac Gar Fac Gar Res Gar Res Tes Res Gar Acc Com Active Infowar (turns) 13663 | . . . . 1 . . . . 919 8 182 . . . . . . . . . . . . . 126 1021 2652 543 721 482 1081 442 905 1024 343 1246 1967 . Sensors 1110 | . . . . 1 . . . . 919 8 182 . . . . . . . . . . . . . . . . . . . . . . . . . . . Jamming 12553 | . . . . . . . . . . . . . . . . . . . . . . . . . 126 1021 2652 543 721 482 1081 442 905 1024 343 1246 1967 . Robot Analysis Total . | . . . . . . . . . . . . . . . . . . . . . . . . . . . . . . . . . . . . . . . Derelict Logs Recovered 2 | . . 1 . 1 . . . . . . . . . . . . . . . . . . . . . . . . . . . . . . . . . . Drone Launches 53 | . . . . . 32 7 . . . . . . . . . . . . . . . . . . . . . . . . . . . . . . 14 . Drone Recoveries 43 | . . . . . 31 2 . . . . . . . . . . . . . . . . . . . . . . . . . . . . . . 10 . Exploration | -11 -10 -10 -10 -9 -8 -8 -8 -8 -7 -7 -7 -7 -7 -7 -6 -6 -6 -6 -6 -6 -6 -6 -5 -5 -4 -4 -4 -4 -4 -4 -3 -3 -3 -3 -2 -2 -1 -1 ------------- Run | Yrd Mat Min Exi Min Mat Gar Mat Gar Fac Gar Fac Gar Fac Gar Fac Was Fac Gar Fac Gar Fac Gar Fac Gar Fac Gar Fac Gar Fac Gar Res Gar Res Tes Res Gar Acc Com Turns Passed 51603 | 96 1865 956 857 1070 2671 759 3511 1226 1028 1289 1361 1400 1023 1755 1038 600 457 1917 1547 1615 701 1195 1150 1106 1447 1099 2683 1298 1879 1286 1085 1346 905 1024 674 1309 2124 1251 Spaces Moved 25338 | 55 984 565 530 571 1194 332 1402 545 555 637 729 677 456 800 476 336 228 963 686 721 416 601 479 611 596 641 1325 640 1053 714 568 711 460 535 279 634 1137 496 Core 21 | 2 . . . . . . . . . . . . . . . . . . . . . . . . . . . . . . . . . . . . . 19 Treads 25317 | 53 984 565 530 571 1194 332 1402 545 555 637 729 677 456 800 476 336 228 963 686 721 416 601 479 611 596 641 1325 640 1053 714 568 711 460 535 279 634 1137 477 Legs . | . . . . . . . . . . . . . . . . . . . . . . . . . . . . . . . . . . . . . . . Wheels . | . . . . . . . . . . . . . . . . . . . . . . . . . . . . . . . . . . . . . . . Hover . | . . . . . . . . . . . . . . . . . . . . . . . . . . . . . . . . . . . . . . . Flight . | . . . . . . . . . . . . . . . . . . . . . . . . . . . . . . . . . . . . . . . Fastest Speed 50 | 50 160 160 160 160 160 160 185 190 148 155 160 160 160 160 160 160 160 160 160 160 160 160 160 160 160 160 160 155 155 155 155 155 166 166 176 170 146 50 Average Speed 167 | 156 160 160 160 181 205 180 202 190 150 156 160 160 160 160 160 160 160 160 181 177 160 160 160 160 195 160 160 156 155 155 155 164 166 174 176 174 151 152 Slowest Speed 295 | 160 160 160 160 240 240 213 213 190 155 163 160 160 160 160 160 160 160 160 240 240 160 160 160 160 240 160 240 212 155 155 232 166 166 176 262 176 170 295 Overloaded Moves . | . . . . . . . . . . . . . . . . . . . . . . . . . . . . . . . . . . . . . . . Propulsion Burnouts . | . . . . . . . . . . . . . . . . . . . . . . . . . . . . . . . . . . . . . . . Robots Hopped . | . . . . . . . . . . . . . . . . . . . . . . . . . . . . . . . . . . . . . . . Potential Cave-ins 6 | . . . . . . . . . . . . . . . . . . . . . . . . . . . 4 . . . . . 2 . . . . . Cave-ins Triggered . | . . . . . . . . . . . . . . . . . . . . . . . . . . . . . . . . . . . . . . . Exploration Rate (%) 58 | 4 98 97 92 88 63 51 75 61 17 85 19 94 20 85 20 89 10 97 26 97 9 93 18 76 27 88 43 73 45 98 23 97 26 83 23 84 54 26 Regions Visited 38 Branch Regions 5 Pre-discovered Areas 7 | . 2 . 1 2 2 . . . . . . . . . . . . . . . . . . . . . . . . . . . . . . . . . Known Exits Taken 15 | . . . . . 1 . 1 . 1 . 1 . 1 . . . 1 . 1 . 1 . 1 . 1 . 1 . 1 . 1 . 1 . 1 . . . Unknown Exits Taken 7 | 1 1 1 1 1 . . . . . . . . . . . . . . . . . . . . . . . . . . . . . 1 . . 1 . Scrap Searched 3 | . . 1 . 2 . . . . . . . . . . . . . . . . . . . . . . . . . . . . . . . . . . Spaces Dug 101 | . . . . . . . 13 1 . 2 5 . . 2 1 . . . 4 . . . 8 . 1 . 34 2 7 . 6 . 5 2 . . 6 2 Terrain Destroyed 720 | . 9 15 . . . 69 13 30 16 77 10 54 1 26 5 . 6 8 12 17 2 5 18 10 41 2 108 26 27 4 9 13 16 5 9 10 40 7 Melee 15 | . . . . . . . 8 1 . 2 3 . . 1 . . . . . . . . . . . . . . . . . . . . . . . . Projectile 327 | . . . . . . . 5 . . . 2 . 1 2 5 . 3 1 12 . 2 2 18 10 13 2 83 26 27 4 9 13 16 5 9 10 40 7 AOE 378 | . 9 15 . . . 69 . 29 16 75 5 54 . 23 . . 3 7 . 17 . 3 . . 28 . 25 . . . . . . . . . . . Terrain Rammed . | . . . . . . . . . . . . . . . . . . . . . . . . . . . . . . . . . . . . . . . Walls Destroyed . | . . . . . . . . . . . . . . . . . . . . . . . . . . . . . . . . . . . . . . . Machines Disabled . | . . . . . . . . . . . . . . . . . . . . . . . . . . . . . . . . . . . . . . . Actions | -11 -10 -10 -10 -9 -8 -8 -8 -8 -7 -7 -7 -7 -7 -7 -6 -6 -6 -6 -6 -6 -6 -6 -5 -5 -4 -4 -4 -4 -4 -4 -3 -3 -3 -3 -2 -2 -1 -1 --------- Run | Yrd Mat Min Exi Min Mat Gar Mat Gar Fac Gar Fac Gar Fac Gar Fac Was Fac Gar Fac Gar Fac Gar Fac Gar Fac Gar Fac Gar Fac Gar Res Gar Res Tes Res Gar Acc Com Total 32554 | 62 1177 601 540 594 1321 437 1879 675 701 813 867 881 704 1118 647 400 278 1176 934 947 445 750 853 733 858 710 1829 923 1286 891 764 879 597 624 416 781 1527 936 Wait 2960 | . 84 15 7 1 22 41 330 59 90 41 50 77 165 149 55 46 15 40 178 65 14 65 302 28 118 20 215 93 93 59 112 49 48 1 28 44 91 50 Move 25313 | 54 983 564 529 570 1194 331 1402 544 555 636 729 676 456 799 476 335 228 962 686 720 416 600 479 610 596 640 1325 639 1052 713 568 710 459 534 278 633 1136 496 Hop . | . . . . . . . . . . . . . . . . . . . . . . . . . . . . . . . . . . . . . . . Pick Up 308 | 2 20 2 2 3 14 5 3 6 5 12 5 12 9 14 9 1 2 19 8 11 1 5 6 10 6 6 13 9 9 11 6 7 3 5 8 10 18 11 Fast Attach 116 | 6 9 . . . 2 3 4 . 3 2 4 3 3 4 3 3 . 4 1 2 . 3 1 2 1 1 7 3 2 2 1 3 2 7 4 4 10 7 Attach 137 | . 2 . . . 4 1 2 1 4 5 3 2 1 6 7 2 . 2 3 3 . 3 5 1 4 1 8 7 2 5 3 5 2 4 10 3 9 17 Detach 51 | . 3 . . . . . 1 1 . 2 2 1 2 4 5 3 . 1 . . . 1 . 1 . 1 2 3 1 . 1 1 . 2 2 2 5 4 Swap 468 | . 4 4 . 7 7 12 19 13 11 23 24 25 12 30 16 4 8 22 10 23 7 14 6 6 11 2 18 11 12 8 10 10 5 5 10 16 21 22 Drop 250 | . 9 2 2 3 16 11 9 2 5 11 5 11 10 9 8 6 . 13 6 12 2 4 1 6 5 4 9 4 4 10 5 4 1 6 . 11 12 12 Fire 2652 | . 51 8 . 4 57 26 95 33 24 33 37 64 37 76 66 . 23 109 35 101 4 55 45 65 110 12 212 151 103 81 55 85 74 54 76 58 218 315 Melee 107 | . . . . . . 7 8 8 1 47 5 6 . 23 . . . 2 . . . . . . . . . . . . . . . . . . . . Ram . | . . . . . . . . . . . . . . . . . . . . . . . . . . . . . . . . . . . . . . . Kick . | . . . . . . . . . . . . . . . . . . . . . . . . . . . . . . . . . . . . . . . Crush 124 | . 12 6 . 4 5 . 6 . 3 . 1 2 6 3 2 . 2 . 6 . 1 . 5 1 6 6 18 2 8 . 3 4 3 3 . . 4 2 Escape Stasis 16 | . . . . . . . . 8 . . . . . . . . . 2 . 6 . . . . . . . . . . . . . . . . . . Rewire 52 | . . . . 2 . . . . . 1 2 2 3 1 . . . . 1 4 . . 3 3 1 17 2 1 . 2 . 1 . 3 . . 3 . Trap . | . . . . . . . . . . . . . . . . . . . . . . . . . . . . . . . . . . . . . . . Miscellaneous . | . . . . . . . . . . . . . . . . . . . . . . . . . . . . . . . . . . . . . . . Route ------- -11/Scrapyard -10/Materials (discovered 6 exits: [*Mat x3] / *Min x2 / [*Sub]) -10/Mines (discovered 3 exits: [*Mat x2] / *Exi) -10/Exiles (discovered 2 exits: *Min x2) -9/Mines (discovered 2 exits: *Mat x2) -8/Materials (discovered 4 exits: *Fac x3 / Gar) -8/Garrison (discovered 3 exits: *Mat x3) -8/Materials (discovered 2 exits: *Fac / Gar) -8/Garrison (discovered 3 exits: *Fac x3) -7/Factory (discovered 2 exits: [*Low] / Gar) -7/Garrison (discovered 3 exits: *Fac x3) -7/Factory (discovered 2 exits: [*Low] / Gar) -7/Garrison (discovered 4 exits: *Fac x3 / *Fac) -7/Factory (discovered 2 exits: *Fac / Gar) -7/Garrison (discovered 3 exits: *Fac x3) -6/Factory -6/Waste -6/Factory -6/Garrison (discovered 4 exits: *Fac x4) -6/Factory (discovered 3 exits: [*Low x2] / Gar) -6/Garrison (discovered 4 exits: *Fac x3 / *Fac) -6/Factory -6/Garrison (discovered 3 exits: *Fac x3) -5/Factory (discovered 2 exits: *Fac / Gar) -5/Garrison (discovered 3 exits: *Fac x3) -4/Factory (discovered 5 exits: *Res x2 / [*Arm] / Gar / Gar) -4/Garrison (discovered 4 exits: *Fac x4) -4/Factory (discovered 4 exits: *Res / [*Upp] / [*Arm] / Gar) -4/Garrison (discovered 4 exits: *Res x3 / *Fac) -4/Factory (discovered 4 exits: *Res / [*Upp] / [*Arm] / Gar) -4/Garrison (discovered 3 exits: *Res x3) -3/Research (discovered 3 exits: Tes x2 / Gar) -3/Garrison (discovered 4 exits: *Res x3 / *Res) -3/Research (discovered 2 exits: *Res / *Tes) -3/Testing -2/Research -2/Garrison (discovered 3 exits: *Acc x3) -1/Access -1/Command History --------- Turn | Location | Event 10 | -11/Scrapyard | Discovered new exit (range 15) 97 | -11/Scrapyard | Entered Materials 98 | -10/Materials | Met a group of wandering Federalists 155 | -10/Materials | Discovered new exit (range 8) 266 | -10/Materials | Discovered new exit (range 12) 307 | -10/Materials | Build established: Mutant 417 | -10/Materials | Discovered new exit (range 3) 827 | -10/Materials | Discovered new exit (range 10) 1007 | -10/Materials | Discovered new exit (range 9) 1628 | -10/Materials | Lost 3 parts (1p1n1w) 1628 | -10/Materials | Discovered new exit (range 16) 1962 | -10/Materials | Entered Mines 2267 | -10/Mines | Discovered new exit (range 8) 2285 | -10/Mines | Escorted by a lone wolf Derelict 2437 | -10/Mines | Found a damaged Exp. Sensor Array with a note attached 2441 | -10/Mines | Found Prototype Device 2469 | -10/Mines | Deemed a non-threat by the Exiles lab entrance 2471 | -10/Mines | Discovered new exit (range 5) 2555 | -10/Mines | Discovered new exit (range 16) 2599 | -10/Mines | Assisted by bots powering up and referring to "LRC-V3" 2841 | -10/Mines | Learned Materials stockpile data 2918 | -10/Mines | Entered Exiles 2918 | -10/Exiles | Accompanied by 6 allies 2942 | -10/Exiles | Discovered new exit (range 15) 2948 | -10/Exiles | Led the pair of lost Derelicts to a safe place 2962 | -10/Exiles | Met 8R-AWN 2984 | -10/Exiles | Met EX-HEX 3043 | -10/Exiles | Met EX-DEC 3221 | -10/Exiles | Met EX-BIN 3240 | -10/Exiles | Aligned with FarCom system 3242 | -10/Exiles | Given EX-Vault access code 3336 | -10/Exiles | Opened EX-Vault 3346 | -10/Exiles | Found Superbattery 3349 | -10/Exiles | Found Trap Reconfigurator 3382 | -10/Exiles | Warned to stay clear of 0b10 Research branches 3514 | -10/Exiles | Visited The Gauntlet 3707 | -10/Exiles | Learned location of Zion (-7) 3755 | -10/Exiles | Discovered new exit (range 10) 3775 | -10/Exiles | Stole two prototypes: Superbattery, Trap Reconfigurator 3775 | -10/Exiles | Entered Mines 3775 | -9/Mines | Accompanied by 3 allies 3780 | -9/Mines | Core integrity fell below 50% 3855 | -9/Mines | Discovered new exit (range 12) 3992 | -9/Mines | Learned location of Storage (-9) 4344 | -9/Mines | Discovered new exit (range 9) 4411 | -9/Mines | A weapon hastily lodged in a ceiling crevice suddenly fell to the ground 4751 | -9/Mines | Found the Drone Emporium 4767 | -9/Mines | Found Prototype Device 4768 | -9/Mines | Identified Splice Drone Bay 4770 | -9/Mines | Identified Exp. Sensor Array 4845 | -9/Mines | Entered Materials 4845 | -8/Materials | Accompanied by 3 allies 4845 | -8/Materials | Evolved 4 slots: Propulsion x1, Utility x3 5826 | -8/Materials | Discovered new exit (range 16) 6032 | -8/Materials | Lost 3 allies 6217 | -8/Materials | Central database locked down 6347 | -8/Materials | Discovered new exit (range 12) 6589 | -8/Materials | Learned location of Extension (-5) 6720 | -8/Materials | Learned location of 1 exit from Storage 6771 | -8/Materials | Identified exit to Factory 6813 | -8/Materials | Learned Storage terminal intel 6925 | -8/Materials | Learned Storage emergency access door positions 7516 | -8/Materials | Identified exit to Garrison 7516 | -8/Materials | Entered Garrison 7516 | -8/Garrison | Accompanied by 2 allies 7555 | -8/Garrison | Discovered new exit (range 32) 7555 | -8/Garrison | Discovered new exit (range 42) 7555 | -8/Garrison | Discovered new exit (range 65) 7642 | -8/Garrison | Triggered checkpoint 7721 | -8/Garrison | Lost 6 allies 7808 | -8/Garrison | Triggered checkpoint 7868 | -8/Garrison | Garrison Relay disabled 7931 | -8/Garrison | Triggered checkpoint 7956 | -8/Garrison | Installed Relay Interface Framework 8206 | -8/Garrison | Triggered checkpoint 8275 | -8/Garrison | Entered Materials 10251 | -8/Materials | Discovered exit to Factory (range 10) 11184 | -8/Materials | Garrison activated, responded to threat 11370 | -8/Materials | Repaired Spread Laser+ 11415 | -8/Materials | Repaired Imp. Deuterium Engine 11781 | -8/Materials | Identified exit to Garrison 11786 | -8/Materials | Entered Garrison 11786 | -8/Garrison | Accompanied by 2 allies 11804 | -8/Garrison | Expanded RIF knowledge: Command Fork 11856 | -8/Garrison | Triggered checkpoint 11881 | -8/Garrison | P-60 Hacker assimilated allied Technician 3d 12024 | -8/Garrison | Triggered checkpoint 12048 | -8/Garrison | Triggered checkpoint 12076 | -8/Garrison | Destroyed 7 combat bots 12100 | -8/Garrison | Triggered checkpoint 12209 | -8/Garrison | Garrison Relay disabled 12625 | -8/Garrison | Learned Factory security intel 12625 | -8/Garrison | Discovered exit to Factory (range 12) 12625 | -8/Garrison | Discovered exit to Factory (range 66) 12625 | -8/Garrison | Discovered exit to Factory (range 35) 12682 | -8/Garrison | Garrison Relay disabled 12694 | -8/Garrison | Triggered checkpoint 12954 | -8/Garrison | Garrison Relay disabled 13012 | -8/Garrison | Entered Factory 13012 | -7/Factory | Accompanied by 3 allies 13012 | -7/Factory | Evolved 2 slots: Propulsion x1, Utility x1 13014 | -7/Factory | FarCom data flow suspended 13269 | -7/Factory | Build established: Bothacker-Mutant 13431 | -7/Factory | Discovered new exit (range 11) 13526 | -7/Factory | Repaired Exp. Sensor Array 14040 | -7/Factory | Identified exit to Garrison 14040 | -7/Factory | Entered Garrison 14040 | -7/Garrison | Accompanied by 2 allies 14121 | -7/Garrison | Expanded RIF knowledge: Autooverride 14235 | -7/Garrison | Triggered checkpoint 14239 | -7/Garrison | Triggered checkpoint 14281 | -7/Garrison | Destroyed 9 combat bots 14281 | -7/Garrison | Triggered checkpoint 14349 | -7/Garrison | Build established: Scientist-Mutant 14365 | -7/Garrison | Triggered checkpoint 14392 | -7/Garrison | Destroyed 7 combat bots 14468 | -7/Garrison | Triggered checkpoint 14522 | -7/Garrison | Discovered new exit (range 15) 14647 | -7/Garrison | Discovered new exit (range 26) 14647 | -7/Garrison | Discovered new exit (range 57) 14647 | -7/Garrison | Discovered new exit (range 67) 14657 | -7/Garrison | Garrison Relay disabled 14985 | -7/Garrison | Build established: Bothacker-Mutant 15110 | -7/Garrison | Triggered checkpoint 15121 | -7/Garrison | Garrison Relay disabled 15234 | -7/Garrison | Triggered checkpoint 15276 | -7/Garrison | Garrison Relay disabled 15329 | -7/Garrison | Entered Factory 15329 | -7/Factory | Accompanied by 2 allies 15556 | -7/Factory | Discovered new exit (range 16) 15605 | -7/Factory | Garrison activated, responded to threat 16283 | -7/Factory | Garrison activated, responded to threat 16322 | -7/Factory | Lost 3 allies 16414 | -7/Factory | Identified exit to Garrison 16457 | -7/Factory | Lost 4 allies 16515 | -7/Factory | Fabricated M-28 Smith? 16646 | -7/Factory | Garrison activated, responded to threat 16681 | -7/Factory | Identified exit to Garrison 16690 | -7/Factory | Entered Garrison 16690 | -7/Garrison | Accompanied by 4 allies 16718 | -7/Garrison | Triggered checkpoint 16800 | -7/Garrison | Lost 4 allies 16810 | -7/Garrison | Garrison Relay disabled 16892 | -7/Garrison | P-60 Hacker assimilated allied Fighter 4a 16911 | -7/Garrison | P-60 Hacker assimilated allied Trooper 4b 16997 | -7/Garrison | Phase Generator disabled 17150 | -7/Garrison | Triggered checkpoint 17184 | -7/Garrison | Expanded RIF knowledge: Watcher Feeds 17283 | -7/Garrison | Discovered new exit (range 10) 17298 | -7/Garrison | Triggered checkpoint 17320 | -7/Garrison | Garrison Relay disabled 17506 | -7/Garrison | Discovered new exit (range 14) 17526 | -7/Garrison | Triggered checkpoint 17545 | -7/Garrison | Discovered new exit (range 3) 17600 | -7/Garrison | Triggered checkpoint 17617 | -7/Garrison | Garrison Relay disabled 17766 | -7/Garrison | Triggered checkpoint 17792 | -7/Garrison | Triggered checkpoint 17856 | -7/Garrison | Triggered checkpoint 17861 | -7/Garrison | Discovered new exit (range 11) 17958 | -7/Garrison | Triggered checkpoint 18012 | -7/Garrison | Lost 3 allies 18090 | -7/Garrison | Entered Factory 18386 | -7/Factory | Repaired Imp. Heavy Treads 18419 | -7/Factory | Repaired Spread Laser+ 18470 | -7/Factory | Repaired Force Field 18602 | -7/Factory | Discovered new exit (range 15) 18855 | -7/Factory | Lost 3 allies 19113 | -7/Factory | Identified exit to Garrison 19113 | -7/Factory | Entered Garrison 19113 | -7/Garrison | Accompanied by 3 allies 19127 | -7/Garrison | Found embedded Infiltrators 19177 | -7/Garrison | Triggered checkpoint 19204 | -7/Garrison | Expanded RIF knowledge: Code Merge 19221 | -7/Garrison | Garrison Relay disabled 19355 | -7/Garrison | Lost 7 allies 19533 | -7/Garrison | System corruption reached 10% 19669 | -7/Garrison | Triggered checkpoint 19689 | -7/Garrison | Triggered checkpoint 19696 | -7/Garrison | Triggered checkpoint 19734 | -7/Garrison | Garrison Relay disabled 19810 | -7/Garrison | Discovered new exit (range 10) 19841 | -7/Garrison | Triggered checkpoint 19897 | -7/Garrison | Garrison Relay disabled 19913 | -7/Garrison | Learned Factory security intel 20066 | -7/Garrison | Build established: Botlord-Mutant 20147 | -7/Garrison | Triggered checkpoint 20178 | -7/Garrison | Garrison Relay disabled 20346 | -7/Garrison | Discovered new exit (range 12) 20397 | -7/Garrison | Garrison Relay disabled 20605 | -7/Garrison | Triggered checkpoint 20727 | -7/Garrison | Triggered checkpoint 20737 | -7/Garrison | Discovered new exit (range 69) 20737 | -7/Garrison | Discovered new exit (range 21) 20737 | -7/Garrison | Discovered new exit (range 36) 20762 | -7/Garrison | Garrison Relay disabled 20868 | -7/Garrison | Entered Factory 20868 | -6/Factory | Accompanied by 5 allies 20868 | -6/Factory | Evolved 2 slots: Power x1, Utility x1 20977 | -6/Factory | Fabricated K-01 Serf (x4) 21460 | -6/Factory | Repaired Imp. Heavy Treads 21514 | -6/Factory | Cargo convoy interrupted 21538 | -6/Factory | P-60 Hacker assimilated allied Veteran 5a 21568 | -6/Factory | First assault squad dispatched 21588 | -6/Factory | Lost 10 allies 21807 | -6/Factory | Build established: Bothacker-Mutant 21906 | -6/Factory | Sucked down chute 21906 | -6/Factory | Entered Waste 21906 | -6/Waste | The area was eerily silent 21906 | -6/Waste | Met up with 1 ally sucked down the chute earlier 21946 | -6/Waste | 1 allies followed down the chute 22238 | -6/Waste | Discovered new exit (range 12) 22506 | -6/Waste | Entered Factory 22506 | -6/Factory | Accompanied by 2 allies 22963 | -6/Factory | Identified exit to Garrison 22963 | -6/Factory | Entered Garrison 22963 | -6/Garrison | Accompanied by 2 allies 23014 | -6/Garrison | Garrison Relay disabled 23113 | -6/Garrison | Triggered checkpoint 23181 | -6/Garrison | Triggered checkpoint 23207 | -6/Garrison | Garrison Relay disabled 23295 | -6/Garrison | Triggered checkpoint 23400 | -6/Garrison | Build established: Botlord-Mutant 23427 | -6/Garrison | Triggered checkpoint 23477 | -6/Garrison | Triggered checkpoint 23515 | -6/Garrison | Garrison Relay disabled 23809 | -6/Garrison | Discovered new exit (range 11) 23853 | -6/Garrison | Expanded RIF knowledge: Structural Interface 24003 | -6/Garrison | Triggered checkpoint 24064 | -6/Garrison | Destroyed 7 combat bots 24135 | -6/Garrison | Triggered checkpoint 24197 | -6/Garrison | Triggered checkpoint 24220 | -6/Garrison | Garrison Relay disabled 24253 | -6/Garrison | Discovered new exit (range 8) 24562 | -6/Garrison | Discovered new exit (range 12) 24565 | -6/Garrison | Triggered checkpoint 24603 | -6/Garrison | Triggered checkpoint 24621 | -6/Garrison | Garrison Relay disabled 24677 | -6/Garrison | Rescued a captive Derelict 24677 | -6/Garrison | Rescued a captive Derelict 24870 | -6/Garrison | Discovered new exit (range 3) 24880 | -6/Garrison | Entered Factory 24880 | -6/Factory | Accompanied by 5 allies 25086 | -6/Factory | Lost 3 allies 25641 | -6/Factory | Found Unknown Protection 25641 | -6/Factory | Identified Hvy. Reactive Plating 25702 | -6/Factory | Found Powered Armor 25720 | -6/Factory | Garrison activated, responded to threat 25729 | -6/Factory | Discovered new exit (range 6) 26171 | -6/Factory | Discovered new exit (range 11) 26274 | -6/Factory | Repaired Force Field 26342 | -6/Factory | Identified exit to Garrison 26427 | -6/Factory | Entered Garrison 26427 | -6/Garrison | Accompanied by 1 ally 26477 | -6/Garrison | Triggered checkpoint 26584 | -6/Garrison | Garrison Relay disabled 26652 | -6/Garrison | Garrison Relay disabled 26813 | -6/Garrison | Destroyed 9 combat bots 26903 | -6/Garrison | Triggered checkpoint 26909 | -6/Garrison | Triggered checkpoint 26974 | -6/Garrison | Expanded RIF knowledge: Threat Obfuscation 27001 | -6/Garrison | Triggered checkpoint 27122 | -6/Garrison | Found Quantum Capacitor 27165 | -6/Garrison | Spotted Executioner 27165 | -6/Garrison | Spotted Executioner 27180 | -6/Garrison | Rewired Executioner 27190 | -6/Garrison | Destroyed Executioner 27199 | -6/Garrison | Destroyed Executioner 27204 | -6/Garrison | Rewired Executioner 27229 | -6/Garrison | Found Exp. Core Analyzer 27246 | -6/Garrison | Discovered new exit (range 3) 27288 | -6/Garrison | Garrison Relay disabled 27443 | -6/Garrison | Triggered checkpoint 27633 | -6/Garrison | Discovered new exit (range 8) 27721 | -6/Garrison | Triggered checkpoint 27793 | -6/Garrison | Triggered checkpoint 27851 | -6/Garrison | Lost 4 allies 27880 | -6/Garrison | Discovered new exit (range 2) 27973 | -6/Garrison | Triggered checkpoint 28003 | -6/Garrison | Discovered new exit (range 3) 28042 | -6/Garrison | Entered Factory 28042 | -6/Factory | Accompanied by 15 allies 28340 | -6/Factory | Unchained authorized (CL-0N3) 28392 | -6/Factory | First assault squad dispatched 28552 | -6/Factory | K-01 Serf reconstituted as Hotshot 28553 | -6/Factory | Spotted Hotshot 28579 | -6/Factory | Allies destroyed Hotshot 28579 | -6/Factory | Hotshot reconstituted as CL-0N3 28608 | -6/Factory | Lost 9 allies 28740 | -6/Factory | Identified exit to Garrison 28743 | -6/Factory | Entered Garrison 28743 | -6/Garrison | Accompanied by 4 allies 28774 | -6/Garrison | Spotted Executioner 28775 | -6/Garrison | Spotted Striker 28781 | -6/Garrison | Triggered checkpoint 28857 | -6/Garrison | Lost 5 allies 28874 | -6/Garrison | Destroyed 7 combat bots 28931 | -6/Garrison | Triggered checkpoint 28963 | -6/Garrison | Triggered checkpoint 28965 | -6/Garrison | P-60 Hacker assimilated allied G-50 Soldier 28985 | -6/Garrison | Triggered checkpoint 29051 | -6/Garrison | Triggered checkpoint 29077 | -6/Garrison | Core integrity fell below 50% 29112 | -6/Garrison | Garrison Relay disabled 29191 | -6/Garrison | Discovered new exit (range 10) 29301 | -6/Garrison | Expanded RIF knowledge: Crosswire 29421 | -6/Garrison | Garrison Relay disabled 29461 | -6/Garrison | Triggered checkpoint 29477 | -6/Garrison | Garrison Relay disabled 29529 | -6/Garrison | Discovered new exit (range 14) 29718 | -6/Garrison | Triggered checkpoint 29745 | -6/Garrison | Expanded RIF knowledge: Autooverride 29774 | -6/Garrison | Garrison Relay disabled 29920 | -6/Garrison | Discovered new exit (range 12) 29938 | -6/Garrison | Entered Factory 29938 | -5/Factory | Evolved 2 slots: Utility x2 30187 | -5/Factory | P-70 Sage assimilated allied Sentinel 6a 30535 | -5/Factory | Fabricated Quantum Reactor? 30659 | -5/Factory | Fabricated M-28 Smith (x1) 30750 | -5/Factory | Discovered new exit (range 15) 31079 | -5/Factory | Identified exit to Garrison 31088 | -5/Factory | Entered Garrison 31088 | -5/Garrison | Accompanied by 2 allies 31156 | -5/Garrison | Triggered checkpoint 31181 | -5/Garrison | Garrison Relay disabled 31240 | -5/Garrison | Expanded RIF knowledge: Program Shield 31246 | -5/Garrison | Spotted B-75 Beast 31261 | -5/Garrison | Assimilated Beast 6a with formatsys_high 31305 | -5/Garrison | Lost 4 allies 31312 | -5/Garrison | Triggered checkpoint 31340 | -5/Garrison | Discovered new exit (range 11) 31428 | -5/Garrison | Triggered checkpoint 31452 | -5/Garrison | Found embedded Infiltrators 31471 | -5/Garrison | H-XX Assembler disabled 31638 | -5/Garrison | Triggered checkpoint 31719 | -5/Garrison | Lost 3 allies 31791 | -5/Garrison | Discovered new exit (range 14) 31791 | -5/Garrison | Discovered new exit (range 79) 31791 | -5/Garrison | Discovered new exit (range 43) 31833 | -5/Garrison | Garrison Relay disabled 32076 | -5/Garrison | Garrison Relay disabled 32194 | -5/Garrison | Entered Factory 32194 | -4/Factory | Accompanied by 2 allies 32194 | -4/Factory | Evolved 2 slots: Propulsion x1, Utility x1 32360 | -4/Factory | Discovered new exit (range 9) 32410 | -4/Factory | Discovered new exit (range 3) 32935 | -4/Factory | Identified exit to Garrison 33104 | -4/Factory | Discovered new exit (range 26) 33443 | -4/Factory | Lost 3 allies 33559 | -4/Factory | Garrison activated, responded to threat 33575 | -4/Factory | System corruption reached 10% 33637 | -4/Factory | Identified exit to Garrison 33641 | -4/Factory | Entered Garrison 33641 | -4/Garrison | Discovered recently destroyed garrison 33641 | -4/Garrison | Accompanied by 2 allies 33681 | -4/Garrison | Expanded RIF knowledge: Zone Cloak 33700 | -4/Garrison | Found embedded Infiltrators 33716 | -4/Garrison | Garrison Relay disabled 34010 | -4/Garrison | Garrison Relay disabled 34084 | -4/Garrison | Discovered new exit (range 12) 34127 | -4/Garrison | Discovered new exit (range 3) 34252 | -4/Garrison | Discovered new exit (range 8) 34478 | -4/Garrison | Garrison Relay disabled 34535 | -4/Garrison | Discovered new exit (range 12) 34740 | -4/Garrison | Entered Factory 34740 | -4/Factory | Accompanied by 9 allies 34987 | -4/Factory | Discovered new exit (range 6) 35052 | -4/Factory | Lost 6 allies 35117 | -4/Factory | Spotted B-86 Titan 35149 | -4/Factory | Destroyed B-86 Titan 35860 | -4/Factory | Discovered new exit (range 16) 36445 | -4/Factory | Found Quantum Capacitor 36481 | -4/Factory | Discovered new exit (range 5) 36972 | -4/Factory | Lost 3 allies 37423 | -4/Factory | Identified exit to Garrison 37423 | -4/Factory | Entered Garrison 37452 | -4/Garrison | Garrison Relay disabled 37487 | -4/Garrison | Triggered checkpoint 37552 | -4/Garrison | Garrison Relay disabled 37593 | -4/Garrison | Triggered checkpoint 37624 | -4/Garrison | Discovered new exit (range 6) 37679 | -4/Garrison | Spotted B-86 Titan 37680 | -4/Garrison | Triggered checkpoint 37700 | -4/Garrison | Destroyed B-86 Titan 37717 | -4/Garrison | Lost 5 allies 37818 | -4/Garrison | Lost 4 allies 38095 | -4/Garrison | Discovered new exit (range 71) 38095 | -4/Garrison | Discovered new exit (range 33) 38095 | -4/Garrison | Discovered new exit (range 27) 38095 | -4/Garrison | Discovered new exit (range 68) 38155 | -4/Garrison | Triggered checkpoint 38173 | -4/Garrison | Garrison Relay disabled 38203 | -4/Garrison | Expanded RIF knowledge: Alert ID Control 38220 | -4/Garrison | Garrison Relay disabled 38260 | -4/Garrison | Spotted Striker 38328 | -4/Garrison | Triggered checkpoint 38595 | -4/Garrison | Found embedded Infiltrators 38721 | -4/Garrison | Entered Factory 38721 | -4/Factory | Accompanied by 5 allies 39018 | -4/Factory | Spotted B-86 Titan 39215 | -4/Factory | Garrison activated, responded to threat 39294 | -4/Factory | Identified exit to Garrison 39364 | -4/Factory | Discovered new exit (range 23) 39523 | -4/Factory | Found Com. Tesla Bomb Launcher 39585 | -4/Factory | Discovered new exit (range 25) 39658 | -4/Factory | Lost 8 allies 40055 | -4/Factory | Discovered new exit (range 5) 40591 | -4/Factory | Identified exit to Garrison 40600 | -4/Factory | Entered Garrison 40600 | -4/Garrison | Accompanied by 1 ally 40640 | -4/Garrison | Triggered checkpoint 40679 | -4/Garrison | Garrison Relay disabled 40765 | -4/Garrison | Triggered checkpoint 40765 | -4/Garrison | Spotted B-86 Titan 40772 | -4/Garrison | Triggered checkpoint 40844 | -4/Garrison | Lost 12 allies 40879 | -4/Garrison | Triggered checkpoint 40920 | -4/Garrison | Discovered new exit (range 8) 40966 | -4/Garrison | Garrison Relay disabled 41121 | -4/Garrison | Garrison Relay disabled 41137 | -4/Garrison | Triggered checkpoint 41172 | -4/Garrison | Discovered new exit (range 2) 41211 | -4/Garrison | Rescued a captive Derelict 41281 | -4/Garrison | Found Relay Coupler [Proto] 41284 | -4/Garrison | Found Relay Coupler [Proto] 41412 | -4/Garrison | Expanded RIF knowledge: Autooverride 41484 | -4/Garrison | Triggered checkpoint 41492 | -4/Garrison | Garrison Relay disabled 41541 | -4/Garrison | Expanded RIF knowledge: Hotswap 41564 | -4/Garrison | Discovered new exit (range 13) 41886 | -4/Garrison | Entered Research 41886 | -3/Research | Accompanied by 4 allies 41886 | -3/Research | Evolved 2 slots: Power x1, Propulsion x1 42333 | -3/Research | Identified exit to Testing 42660 | -3/Research | Cargo convoy interrupted 42671 | -3/Research | Lost 3 allies 42781 | -3/Research | Spotted Executioner 42810 | -3/Research | System corruption reached 10% 42816 | -3/Research | Lost 3 allies 42839 | -3/Research | Destroyed Executioner 42971 | -3/Research | Identified exit to Garrison 42971 | -3/Research | Entered Garrison 43095 | -3/Garrison | Triggered checkpoint 43114 | -3/Garrison | Garrison Relay disabled 43158 | -3/Garrison | Garrison Relay disabled 43203 | -3/Garrison | Spotted B-86 Titan 43212 | -3/Garrison | Triggered checkpoint 43266 | -3/Garrison | Destroyed B-86 Titan 43319 | -3/Garrison | Triggered checkpoint 43321 | -3/Garrison | Triggered checkpoint 43341 | -3/Garrison | Triggered checkpoint 43421 | -3/Garrison | Discovered new exit (range 12) 43459 | -3/Garrison | Found embedded Infiltrators 43485 | -3/Garrison | Triggered checkpoint 43518 | -3/Garrison | Garrison Relay disabled 43739 | -3/Garrison | Triggered checkpoint 43783 | -3/Garrison | Discovered new exit (range 91) 43783 | -3/Garrison | Discovered new exit (range 61) 43783 | -3/Garrison | Discovered new exit (range 13) 43783 | -3/Garrison | Discovered new exit (range 19) 43794 | -3/Garrison | Lost 3 parts (1p1u1w) 43794 | -3/Garrison | Lost 4 allies 43797 | -3/Garrison | Garrison Relay disabled 43939 | -3/Garrison | Triggered checkpoint 43972 | -3/Garrison | Expanded RIF knowledge: Command Fork 44034 | -3/Garrison | Rewired Striker 44039 | -3/Garrison | Rewired Striker 44070 | -3/Garrison | Garrison Relay disabled 44283 | -3/Garrison | Triggered checkpoint 44317 | -3/Garrison | Entered Research 44317 | -3/Research | Accompanied by 8 allies 44631 | -3/Research | Spotted B-86 Titan 44645 | -3/Research | Allies destroyed B-86 Titan 44881 | -3/Research | Discovered new exit (range 3) 45054 | -3/Research | Cargo convoy interrupted 45067 | -3/Research | First assault squad dispatched 45082 | -3/Research | Discovered exit to Testing (range 21) 45120 | -3/Research | Lost 6 allies 45127 | -3/Research | System corruption reached 30% 45222 | -3/Research | Entered Testing 45248 | -3/Testing | Lost 3 parts (2u1w) 45707 | -3/Testing | Found Prototype Device 45707 | -3/Testing | Identified 2N-1CE's Frost Array 45954 | -3/Testing | Unchained authorized (DW-4LL) 46143 | -3/Testing | Discovered new exit (range 31) 46231 | -3/Testing | DW-4LL burst out of a wall 46246 | -3/Testing | Entered Research 46246 | -2/Research | Evolved 2 slots: Utility x2 46275 | -2/Research | Lost 4 parts (4u) 46382 | -2/Research | Spotted B-90 Cyclops 46404 | -2/Research | Destroyed B-90 Cyclops 46432 | -2/Research | Unchained authorized (DW-4LL) 46527 | -2/Research | Spotted B-90 Cyclops 46537 | -2/Research | Destroyed B-90 Cyclops 46561 | -2/Research | Garrison activated, responded to threat 46649 | -2/Research | Lost 7 allies 46765 | -2/Research | DW-4LL burst out of a wall 46773 | -2/Research | Destroyed DW-4LL 46779 | -2/Research | Found ID Mask 46806 | -2/Research | Lost 6 allies 46830 | -2/Research | Found Prototype Processor 46830 | -2/Research | Identified Exp. Target Analyzer 46897 | -2/Research | Identified exit to Garrison 46920 | -2/Research | Entered Garrison 46963 | -2/Garrison | Expanded RIF knowledge: Coupler Efficiency 47000 | -2/Garrison | Triggered checkpoint 47019 | -2/Garrison | Garrison Relay disabled 47130 | -2/Garrison | Triggered checkpoint 47179 | -2/Garrison | Triggered checkpoint 47180 | -2/Garrison | Triggered checkpoint 47185 | -2/Garrison | Triggered checkpoint 47237 | -2/Garrison | Lost 5 allies 47320 | -2/Garrison | Discovered new exit (range 10) 47383 | -2/Garrison | Rescued a captive Derelict 47384 | -2/Garrison | Rescued a captive Derelict 47398 | -2/Garrison | Triggered checkpoint 47481 | -2/Garrison | Garrison Relay disabled 47566 | -2/Garrison | Spotted B-75 Beast 47570 | -2/Garrison | Allies destroyed B-75 Beast 47591 | -2/Garrison | Found Quantum Capacitor 47596 | -2/Garrison | Rewired B-75 Beast 47826 | -2/Garrison | Triggered checkpoint 47857 | -2/Garrison | Garrison Relay disabled 47900 | -2/Garrison | Discovered new exit (range 23) 47900 | -2/Garrison | Discovered new exit (range 50) 47900 | -2/Garrison | Discovered new exit (range 72) 48152 | -2/Garrison | Triggered checkpoint 48173 | -2/Garrison | Garrison Relay disabled 48229 | -2/Garrison | Entered Access 48229 | -1/Access | Accompanied by 1 ally 48229 | -1/Access | Evolved 2 slots: Power x1, Utility x1 48655 | -1/Access | P-80 Master assimilated allied Engineer 10a 48894 | -1/Access | Unchained authorized (GL-D0S) 48941 | -1/Access | Found Exp. Targeting Computer 49072 | -1/Access | Garrison activated, responded to threat 49161 | -1/Access | Lost 4 allies 49918 | -1/Access | Lost 10 allies 50129 | -1/Access | Spotted B-99 Colossus 50157 | -1/Access | Lost 3 allies 50173 | -1/Access | Destroyed B-99 Colossus 50184 | -1/Access | Spotted B-99 Colossus 50240 | -1/Access | Destroyed B-99 Colossus 50265 | -1/Access | Found Hvy. Insulated Plating 50277 | -1/Access | Found Prototype Ballistic Gun 50340 | -1/Access | Discovered new exit (range 5) 50353 | -1/Access | Entered Command 50413 | -1/Command | Found Hvy. Insulated Plating 50702 | -1/Command | Spotted Combat Programmer 50702 | -1/Command | Spotted Combat Programmer 50710 | -1/Command | Spotted M Guard 50723 | -1/Command | Spotted M Guard 50732 | -1/Command | Allies destroyed Combat Programmer 50737 | -1/Command | Destroyed M Guard 50742 | -1/Command | Assimilated M Guard with formatsys_high 50746 | -1/Command | System corruption reached 10% 50750 | -1/Command | Allies destroyed Combat Programmer 50770 | -1/Command | Lost 4 allies 51332 | -1/Command | 0b10 Conduit disabled 51332 | -1/Command | Met MAIN.C 51336 | -1/Command | All MAIN.C guards destroyed 51437 | -1/Command | Lost 3 parts (1p1n1u) 51492 | -1/Command | Destroyed MAIN.C Shell 51493 | -1/Command | MAIN.C activated Command garrisons 51497 | -1/Command | Identified Multirail 51584 | -1/Command | Released all parts (9) 51591 | -1/Command | Core integrity fell below 50% 51602 | -1/Command | Core integrity fell below 20% 51604 | -1/Command | Destroyed by H-88 Terminator with KE Penetrator Last Messages --------------- 51584_ ID Mask fries itself. 51585_ Acquired 10 matter. 51585_ C-45 Heavy ARC bursts open, deploying its payload. 51585_ H-88 Terminator unfolds itself. 51585_ Slug penetrates 0b10 Conduit. 51585_ Acquired Rnf. Quantum Reactor. 51586_ System corrupted: Component data lost. 51586_ Penetrated by Slug. 51587_ Knocked back. 51588_ Slug penetrates I-47 Archangel. 51589_ Penetrated by Slug. 51589_ Slug penetrates MAIN.C. 51590_ Knocked back. 51595_ Dropped Rnf. Quantum Reactor. 51597_ Penetrated by Slug. 51597_ Com. Tesla Bomb Launcher destroyed. 51600_ Penetrated by Slug. 51601_ System corrupted: Matter fused (-5). 51603_ Slug penetrates Heavy Barrier. [Achievement: 75k Club] Map ----- +----------------------------------------------------+ | ?????????????????????????????????????????????????? | | ?????????????????????????????????????????????????? | | ?????????????????????????????????????????????????? | | ?????????????????????????????????????????????????? | | ?????????????????????????????????????????????????? | | ?????????????????????????????????????????????????? | | ?????????????????????????????????????????????????? | | ?????????????????????????????????################? | | ??????????????????????????????"""" """" #? | | ?????????????????????????????? "" #? | | ???????????????????????????""""" "" ## | | ???????????????????????????""""""""""" |! | | ??????????????????????????#" " "" %%=%= | | ??????????????????????????#"" """ =|* | | ??????????????????????????#"" " ] %[[## | | ??????????????????????????# " " *!!]! !#? | | ??????????????????????????# " ! %!% #? | | ??????????????????????????# " *%]% #? | | ??????????????????????????#" "" "" !!* "#? | | ??????????????????????????#"" ""#? | | ??????????????????????????# """#? | | ??????????????????????????# i " #? | | ??????????????????????????# % %% " #? | | ??????????????????????????" % % """" " #? | | ????????????????????????""" M"%% """" #? | | ????????????????????????"@ * " " " #? | | ????????????????????????### % """"" """ " #? | | ??????????????????????????# % " "" " """"""""#? | | ??????????????????????????# """ " " " ??? | | ??????????????????????????###################????? | | ?????????????????????????????????????????????????? | | ?????????????????????????????????????????????????? | | ?????????????????????????????????????????????????? | | ?????????????????????????????????????????????????? | | ?????????????????????????????????????????????????? | | ?????????????????????????????????????????????????? | | ?????????????????????????????????????????????????? | | ?????????????????????????????????????????????????? | | ?????????????????????????????????????????????????? | | ?????????????????????????????????????????????????? | | ?????????????????????????????????????????????????? | | ?????????????????????????????????????????????????? | | ?????????????????????????????????????????????????? | | ?????????????????????????????????????????????????? | | ?????????????????????????????????????????????????? | | ?????????????????????????????????????????????????? | | ?????????????????????????????????????????????????? | | ?????????????????????????????????????????????????? | | ?????????????????????????????????????????????????? | | ?????????????????????????????????????????????????? | +----------------------------------------------------+ Best States ------------- Heat Dissipation 168 Coolant Potential 100 Energy Generation 111 Energy Capacity 1790 Matter Stores 300 Matter Capacity 350 Sight Range 16 Robot Scan Range 20 Terrain Scan Density 10 Jamming Range 16 Power Amplification 40 Base Temperature (-) 150 Armor Coverage 1500 Resistance: KI 40 Resistance: EM 30 Utility Shielding 66 Evasion (%) 50 Targeting Accuracy 12 Target Analysis 12 Core Analysis 8 Recoil Reduction 6 Particle Charging 25 Relay Coupler Types 7 Relay Coupler Value 191 Authchip Count 1 Item Schematics ----------------- Lgt. Armor Plating | -10/Mines | Hacked Exp. Sensor Array | -8/Materials | Scanalyzed Cld. Nuclear Pulse Thruster | -3/Testing | Archive Centrium Medium Armor Plating | -3/Testing | Archive Adv. Plasma Rifle | -3/Testing | Archive Cld. Antigrav System | -3/Testing | Archive Prc. Phase Gun | -3/Testing | Archive Adv. Remote Shield | -3/Testing | Archive Enh. Coil Gun | -3/Testing | Archive Robot Schematics ------------------ M-13 Machinist | -10/Materials | Hacked M-28 Smith | -8/Materials | Hacked I-47 Archangel | -3/Testing | Archive K-01 Serf | -3/Testing | Archive C-55 Analyst | -3/Testing | Archive L-61 Swordsman | -3/Testing | Archive Fabricated ------------ M-28 Smith | x1 | -7/Factory K-01 Serf | x4 | -6/Factory | Preloaded Quantum Reactor | x2 | -5/Factory | Preloaded M-28 Smith | x1 | -5/Factory | Authchip Repaired ---------- Spread Laser | 10% | -8/Materials Imp. Deuterium Engine | 3% | -8/Materials Exp. Sensor Array | 62% | -7/Factory Imp. Heavy Treads | 24% | -7/Factory Spread Laser | 10% | -7/Factory Force Field | 54% | -7/Factory Imp. Heavy Treads | 70% | -6/Factory Force Field | 50% | -6/Factory Studied --------- Spread Laser | -8/Materials | Hacked Lgt. Treads | -8/Materials | Hacked Autogun | -8/Materials | Hacked Imp. Treads | -8/Materials | Hacked Adv. Treads | -8/Materials | Hacked Remote Datajack | -7/Factory | Hacked Imp. Deuterium Engine | -7/Factory | Hacked Hvy. Particle Cannon | -7/Factory | Hacked Hvy. Rocket Launcher | -6/Factory | Hacked Hvy. Plasma Cannon | -6/Factory | Hacked Imp. Remote Datajack | -6/Factory | Hacked Alien Tech Used ----------------- None Achievements -------------- 75k Club Analysis Probe Bending The Rules Bigger And Badder Botjacking DATA ERROR: Steam Global Achievement% DIY Cooler Ew, Corruption For Emergencies Only Hack Snack Hack The Planet Hackathon Hackerman Heavy Suspicion Hot Stuff I Have A Map? Immobile And Lovin' It Into The Breach Item+ Jackpot Join The Dark Side Let Me Out Of Here Live, Flee, And Rebuild Mindtrick Morally Flexible My Bad Not Today, Chutes Official Business Oppo Buddy Organ Harvest Overwhelming Plot Armor Powerful Protocols RIFT Wizard Recruitment Drive Satisfying Sixth Sense Tank Life That Tickles The Better Part Of Valor There's More Where That Came From Throw Away The Key Versatile Watcher Gambling Well Done Well-fed Force Field You Will Be Upgraded Zeroed Repercussions Challenges ------------ None Game ------ Seed ChargeFissionRecalibrator Manual? 0 Play Time 06:29:39 Cumulative 772.4 hours Start 2025.10.21 @ 21:44:15 End 2025.10.22 @ 21:02:32 Sessions 19 Manual Loads 0 Difficulty Rogue Special Mode None Game No. 390 Rogue 390 Adventurer 0 Explorer 0 Win Type - Total 63 Types 41/4/5/4/1/1/3/2/1/1 Lore% 92 Gallery% 85 Achievement% 59 Wizard Run 0 Options --------- Layout 0 ASCII 0 Keyboard 1 Movement Numpad Keybinds 0 Fullscreen 2 Font 18/SmallcapsGlow Map View 76x50 Zoom Use 0% Tactical HUD 1 Map Filters NONE Filters NONE Steam 1 RUN: 3b561fba-4595-4750-8ac9-7d79c19ff738